Workbook

Sheet AVISO LEGAL
H2: Fecha de actualización: | J2: 2017-09-12
J23: www.ree.es

Sheet Componentes mes nacional
O1: 7
M4: Sistema eléctrico
M5: Horizonte temporal
M6: Periodo
C8: Ene. | D8: Feb. | E8: Mar. | F8: Abr. | G8: May. | H8: Jun. | I8: Jul. | J8: Ago. | K8: Sep. | L8: Oct. | M8: Nov. | N8: Dic. | O8: =OFFSET(Año!B22,($O$1-1),0) -> 2017
B10: Variación mensual | C10: =OFFSET(Componentes!C24,0,($O$1-1)*13) -> 7.685800689 | D10: =OFFSET(Componentes!D24,0,($O$1-1)*13) -> -4.308407122 | E10: =OFFSET(Componentes!E24,0,($O$1-1)*13) -> -1.67918273 | F10: =OFFSET(Componentes!F24,0,($O$1-1)*13) -> -5.151063314 | G10: =OFFSET(Componentes!G24,0,($O$1-1)*13) -> 3.273198423 | H10: =OFFSET(Componentes!H24,0,($O$1-1)*13) -> 6.724531857 | I10: =OFFSET(Componentes!I24,0,($O$1-1)*13) -> 1.046107325 | J10: =OFFSET(Componentes!J24,0,($O$1-1)*13) -> 1.832171288 | K10: =OFFSET(Componentes!K24,0,($O$1-1)*13) -> - | L10: =OFFSET(Componentes!L24,0,($O$1-1)*13) -> - | M10: =OFFSET(Componentes!M24,0,($O$1-1)*13) -> - | N10: =OFFSET(Componentes!N24,0,($O$1-1)*13) -> - | O10: =OFFSET(Componentes!O24,0,($O$1-1)*13) -> 1.199727124
B12: Componentes (1)
B13: Laboralidad | C13: =OFFSET(Componentes!C26,0,($O$1-1)*13) -> 1.131708941 | D13: =OFFSET(Componentes!D26,0,($O$1-1)*13) -> -0.2415528815 | E13: =OFFSET(Componentes!E26,0,($O$1-1)*13) -> 2.54231567 | F13: =OFFSET(Componentes!F26,0,($O$1-1)*13) -> -3.493584481 | G13: =OFFSET(Componentes!G26,0,($O$1-1)*13) -> 0.5022345109 | H13: =OFFSET(Componentes!H26,0,($O$1-1)*13) -> 0.2217051554 | I13: =OFFSET(Componentes!I26,0,($O$1-1)*13) -> -0.0794877015 | J13: =OFFSET(Componentes!J26,0,($O$1-1)*13) -> -0.1400506225 | K13: =OFFSET(Componentes!K26,0,($O$1-1)*13) -> - | L13: =OFFSET(Componentes!L26,0,($O$1-1)*13) -> - | M13: =OFFSET(Componentes!M26,0,($O$1-1)*13) -> - | N13: =OFFSET(Componentes!N26,0,($O$1-1)*13) -> - | O13: =OFFSET(Componentes!O26,0,($O$1-1)*13) -> -0.2751254565
B14: Temperatura (2) | C14: =OFFSET(Componentes!C27,0,($O$1-1)*13) -> 1.260639411 | D14: =OFFSET(Componentes!D27,0,($O$1-1)*13) -> -5.561329899 | E14: =OFFSET(Componentes!E27,0,($O$1-1)*13) -> -2.650234261 | F14: =OFFSET(Componentes!F27,0,($O$1-1)*13) -> -0.7583606899 | G14: =OFFSET(Componentes!G27,0,($O$1-1)*13) -> 1.539433326 | H14: =OFFSET(Componentes!H27,0,($O$1-1)*13) -> 2.399328675 | I14: =OFFSET(Componentes!I27,0,($O$1-1)*13) -> 0.00826496541 | J14: =OFFSET(Componentes!J27,0,($O$1-1)*13) -> 0.2455648655 | K14: =OFFSET(Componentes!K27,0,($O$1-1)*13) -> - | L14: =OFFSET(Componentes!L27,0,($O$1-1)*13) -> - | M14: =OFFSET(Componentes!M27,0,($O$1-1)*13) -> - | N14: =OFFSET(Componentes!N27,0,($O$1-1)*13) -> - | O14: =OFFSET(Componentes!O27,0,($O$1-1)*13) -> 0.02647749128
B15: Demanda corregida | C15: =OFFSET(Componentes!C28,0,($O$1-1)*13) -> 5.293452337 | D15: =OFFSET(Componentes!D28,0,($O$1-1)*13) -> 1.494475658 | E15: =OFFSET(Componentes!E28,0,($O$1-1)*13) -> -1.571264139 | F15: =OFFSET(Componentes!F28,0,($O$1-1)*13) -> -0.8991181433 | G15: =OFFSET(Componentes!G28,0,($O$1-1)*13) -> 1.231530586 | H15: =OFFSET(Componentes!H28,0,($O$1-1)*13) -> 4.103498026 | I15: =OFFSET(Componentes!I28,0,($O$1-1)*13) -> 1.117330061 | J15: =OFFSET(Componentes!J28,0,($O$1-1)*13) -> 1.726657045 | K15: =OFFSET(Componentes!K28,0,($O$1-1)*13) -> - | L15: =OFFSET(Componentes!L28,0,($O$1-1)*13) -> - | M15: =OFFSET(Componentes!M28,0,($O$1-1)*13) -> - | N15: =OFFSET(Componentes!N28,0,($O$1-1)*13) -> - | O15: =OFFSET(Componentes!O28,0,($O$1-1)*13) -> 1.448375089
B17: (1) La suma de los componentes es igual al tanto por ciento de variación de la demanda total.
B18: (2) Una media de las temperaturas máximas diarias por debajo o por encima de los umbrales de invierno y verano respectivamente, produce aumento de la demanda.

Sheet Componentes año nacional
L1: 1
J4: Sistema eléctrico
J5: Horizonte temporal
J6: Periodo
C8: =OFFSET(Componentes!C51,0,($L$1-1)*10) -> 2011 | D8: =OFFSET(Componentes!D51,0,($L$1-1)*10) -> 2012 | E8: =OFFSET(Componentes!E51,0,($L$1-1)*10) -> 2013 | F8: =OFFSET(Componentes!F51,0,($L$1-1)*10) -> 2014 | G8: =OFFSET(Componentes!G51,0,($L$1-1)*10) -> 2015 | H8: =OFFSET(Componentes!H51,0,($L$1-1)*10) -> 2016 | I8: =OFFSET(Componentes!I51,0,($L$1-1)*10) -> 2017 | J8: =OFFSET(Componentes!J51,0,($L$1-1)*10) -> 2018 | K8: =OFFSET(Componentes!K51,0,($L$1-1)*10) -> 2019 | L8: =OFFSET(Componentes!L51,0,($L$1-1)*10) -> 2020
B10: Variación anual | C10: =OFFSET(Componentes!C52,0,($L$1-1)*10) -> -1.836834145 | D10: =OFFSET(Componentes!D52,0,($L$1-1)*10) -> -1.282208225 | E10: =OFFSET(Componentes!E52,0,($L$1-1)*10) -> -2.27637452 | F10: =OFFSET(Componentes!F52,0,($L$1-1)*10) -> -1.128367328 | G10: =OFFSET(Componentes!G52,0,($L$1-1)*10) -> 1.995758211 | H10: =OFFSET(Componentes!H52,0,($L$1-1)*10) -> 0.6554166259 | I10: =OFFSET(Componentes!I52,0,($L$1-1)*10) -> 1.199727124 | J10: =OFFSET(Componentes!J52,0,($L$1-1)*10) -> - | K10: =OFFSET(Componentes!K52,0,($L$1-1)*10) -> - | L10: =OFFSET(Componentes!L52,0,($L$1-1)*10) -> -
B12: Componentes (1)
B13: Laboralidad | C13: =OFFSET(Componentes!C54,0,($L$1-1)*10) -> 0.1174574274 | D13: =OFFSET(Componentes!D54,0,($L$1-1)*10) -> -0.2597197327 | E13: =OFFSET(Componentes!E54,0,($L$1-1)*10) -> 0.1725230084 | F13: =OFFSET(Componentes!F54,0,($L$1-1)*10) -> -0.009317152201 | G13: =OFFSET(Componentes!G54,0,($L$1-1)*10) -> -0.07473808357 | H13: =OFFSET(Componentes!H54,0,($L$1-1)*10) -> 0.5800231571 | I13: =OFFSET(Componentes!I54,0,($L$1-1)*10) -> -0.2751254565 | J13: =OFFSET(Componentes!J54,0,($L$1-1)*10) -> - | K13: =OFFSET(Componentes!K54,0,($L$1-1)*10) -> - | L13: =OFFSET(Componentes!L54,0,($L$1-1)*10) -> -
B14: Temperatura (2) | C14: =OFFSET(Componentes!C55,0,($L$1-1)*10) -> -1.012969146 | D14: =OFFSET(Componentes!D55,0,($L$1-1)*10) -> 0.6924805914 | E14: =OFFSET(Componentes!E55,0,($L$1-1)*10) -> -0.2963318639 | F14: =OFFSET(Componentes!F55,0,($L$1-1)*10) -> -0.9634759263 | G14: =OFFSET(Componentes!G55,0,($L$1-1)*10) -> 0.359515108 | H14: =OFFSET(Componentes!H55,0,($L$1-1)*10) -> 0.04646389977 | I14: =OFFSET(Componentes!I55,0,($L$1-1)*10) -> 0.02647749128 | J14: =OFFSET(Componentes!J55,0,($L$1-1)*10) -> - | K14: =OFFSET(Componentes!K55,0,($L$1-1)*10) -> - | L14: =OFFSET(Componentes!L55,0,($L$1-1)*10) -> -
B15: Demanda corregida | C15: =OFFSET(Componentes!C56,0,($L$1-1)*10) -> -0.9413224262 | D15: =OFFSET(Componentes!D56,0,($L$1-1)*10) -> -1.714969084 | E15: =OFFSET(Componentes!E56,0,($L$1-1)*10) -> -2.152565665 | F15: =OFFSET(Componentes!F56,0,($L$1-1)*10) -> -0.1555742491 | G15: =OFFSET(Componentes!G56,0,($L$1-1)*10) -> 1.710981187 | H15: =OFFSET(Componentes!H56,0,($L$1-1)*10) -> 0.02892956905 | I15: =OFFSET(Componentes!I56,0,($L$1-1)*10) -> 1.448375089 | J15: =OFFSET(Componentes!J56,0,($L$1-1)*10) -> - | K15: =OFFSET(Componentes!K56,0,($L$1-1)*10) -> - | L15: =OFFSET(Componentes!L56,0,($L$1-1)*10) -> -
B17: (1) La suma de los componentes es igual al tanto por ciento de variación de la demanda total.
B18: (2) Una media de las temperaturas máximas diarias por debajo o por encima de los umbrales de invierno y verano respectivamente, produce aumento de la demanda.
B19: =IF(MONTH('AVISO LEGAL'!J2)=1,"Datos a 31 de diciembre.",CONCATENATE("Datos a 31 de diciembre. Para el año ",YEAR('AVISO LEGAL'!J2), " datos a ",TEXT('AVISO LEGAL'!J2-30,"mmmm")," de ",YEAR('AVISO LEGAL'!J2),".")) -> Datos a 31 de diciembre. Para el año 2017 datos a agosto de 2017.

Sheet Componentes mes peninsula
O1: 27
M4: Sistema eléctrico
M5: Horizonte temporal
M6: Periodo
C8: Ene. | D8: Feb. | E8: Mar. | F8: Abr. | G8: May. | H8: Jun. | I8: Jul. | J8: Ago. | K8: Sep. | L8: Oct. | M8: Nov. | N8: Dic. | O8: =OFFSET(Año!B2,($O$1-1),0) -> 2017
B10: Variación mensual | C10: =OFFSET(Componentes!C3,0,($O$1-1)*13) -> 7.690429422 | D10: =OFFSET(Componentes!D3,0,($O$1-1)*13) -> -4.421816568 | E10: =OFFSET(Componentes!E3,0,($O$1-1)*13) -> -1.6698335 | F10: =OFFSET(Componentes!F3,0,($O$1-1)*13) -> -5.518982922 | G10: =OFFSET(Componentes!G3,0,($O$1-1)*13) -> 3.266983718 | H10: =OFFSET(Componentes!H3,0,($O$1-1)*13) -> 6.808278144 | I10: =OFFSET(Componentes!I3,0,($O$1-1)*13) -> 0.8874858393 | J10: =OFFSET(Componentes!J3,0,($O$1-1)*13) -> 1.590916023 | K10: =OFFSET(Componentes!K3,0,($O$1-1)*13) -> - | L10: =OFFSET(Componentes!L3,0,($O$1-1)*13) -> - | M10: =OFFSET(Componentes!M3,0,($O$1-1)*13) -> - | N10: =OFFSET(Componentes!N3,0,($O$1-1)*13) -> - | O10: =OFFSET(Componentes!O3,0,($O$1-1)*13) -> 1.094843788
B12: Componentes (1)
B13: Laboralidad | C13: =OFFSET(Componentes!C5,0,($O$1-1)*13) -> 1.1876381 | D13: =OFFSET(Componentes!D5,0,($O$1-1)*13) -> -0.03441840558 | E13: =OFFSET(Componentes!E5,0,($O$1-1)*13) -> 2.682997922 | F13: =OFFSET(Componentes!F5,0,($O$1-1)*13) -> -3.605638273 | G13: =OFFSET(Componentes!G5,0,($O$1-1)*13) -> 0.5457506578 | H13: =OFFSET(Componentes!H5,0,($O$1-1)*13) -> 0.2475618 | I13: =OFFSET(Componentes!I5,0,($O$1-1)*13) -> -0.07091260996 | J13: =OFFSET(Componentes!J5,0,($O$1-1)*13) -> -0.1404384514 | K13: =OFFSET(Componentes!K5,0,($O$1-1)*13) -> - | L13: =OFFSET(Componentes!L5,0,($O$1-1)*13) -> - | M13: =OFFSET(Componentes!M5,0,($O$1-1)*13) -> - | N13: =OFFSET(Componentes!N5,0,($O$1-1)*13) -> - | O13: =OFFSET(Componentes!O5,0,($O$1-1)*13) -> -0.2942831758
B14: Temperatura (2) | C14: =OFFSET(Componentes!C6,0,($O$1-1)*13) -> 1.128573927 | D14: =OFFSET(Componentes!D6,0,($O$1-1)*13) -> -5.850447757 | E14: =OFFSET(Componentes!E6,0,($O$1-1)*13) -> -2.715136958 | F14: =OFFSET(Componentes!F6,0,($O$1-1)*13) -> -0.7867779029 | G14: =OFFSET(Componentes!G6,0,($O$1-1)*13) -> 1.573606628 | H14: =OFFSET(Componentes!H6,0,($O$1-1)*13) -> 2.460862225 | I14: =OFFSET(Componentes!I6,0,($O$1-1)*13) -> -0.0005397650978 | J14: =OFFSET(Componentes!J6,0,($O$1-1)*13) -> 0.1198208347 | K14: =OFFSET(Componentes!K6,0,($O$1-1)*13) -> - | L14: =OFFSET(Componentes!L6,0,($O$1-1)*13) -> - | M14: =OFFSET(Componentes!M6,0,($O$1-1)*13) -> - | N14: =OFFSET(Componentes!N6,0,($O$1-1)*13) -> - | O14: =OFFSET(Componentes!O6,0,($O$1-1)*13) -> -0.0199257276
B15: Demanda corregida | C15: =OFFSET(Componentes!C7,0,($O$1-1)*13) -> 5.374217395 | D15: =OFFSET(Componentes!D7,0,($O$1-1)*13) -> 1.463049595 | E15: =OFFSET(Componentes!E7,0,($O$1-1)*13) -> -1.637694464 | F15: =OFFSET(Componentes!F7,0,($O$1-1)*13) -> -1.126566747 | G15: =OFFSET(Componentes!G7,0,($O$1-1)*13) -> 1.147626432 | H15: =OFFSET(Componentes!H7,0,($O$1-1)*13) -> 4.099854119 | I15: =OFFSET(Componentes!I7,0,($O$1-1)*13) -> 0.9589382143 | J15: =OFFSET(Componentes!J7,0,($O$1-1)*13) -> 1.611533639 | K15: =OFFSET(Componentes!K7,0,($O$1-1)*13) -> - | L15: =OFFSET(Componentes!L7,0,($O$1-1)*13) -> - | M15: =OFFSET(Componentes!M7,0,($O$1-1)*13) -> - | N15: =OFFSET(Componentes!N7,0,($O$1-1)*13) -> - | O15: =OFFSET(Componentes!O7,0,($O$1-1)*13) -> 1.409052691
B17: (1) La suma de los componentes es igual al tanto por ciento de variación de la demanda total.
B18: (2) Una media de las temperaturas máximas diarias por debajo o por encima de los umbrales de invierno y verano respectivamente, produce aumento de la demanda.

Sheet Componentes año peninsula
L1: 3
J4: Sistema eléctrico
J5: Horizonte temporal
J6: Periodo
C8: =OFFSET(Componentes!C30,0,($L$1-1)*10) -> 2011 | D8: =OFFSET(Componentes!D30,0,($L$1-1)*10) -> 2012 | E8: =OFFSET(Componentes!E30,0,($L$1-1)*10) -> 2013 | F8: =OFFSET(Componentes!F30,0,($L$1-1)*10) -> 2014 | G8: =OFFSET(Componentes!G30,0,($L$1-1)*10) -> 2015 | H8: =OFFSET(Componentes!H30,0,($L$1-1)*10) -> 2016 | I8: =OFFSET(Componentes!I30,0,($L$1-1)*10) -> 2017 | J8: =OFFSET(Componentes!J30,0,($L$1-1)*10) -> 2018 | K8: =OFFSET(Componentes!K30,0,($L$1-1)*10) -> 2019 | L8: =OFFSET(Componentes!L30,0,($L$1-1)*10) -> 2020
B10: Variación anual | C10: =OFFSET(Componentes!C31,0,($L$1-1)*10) -> -1.892143894 | D10: =OFFSET(Componentes!D31,0,($L$1-1)*10) -> -1.401885516 | E10: =OFFSET(Componentes!E31,0,($L$1-1)*10) -> -2.24027504 | F10: =OFFSET(Componentes!F31,0,($L$1-1)*10) -> -1.146487295 | G10: =OFFSET(Componentes!G31,0,($L$1-1)*10) -> 1.993268017 | H10: =OFFSET(Componentes!H31,0,($L$1-1)*10) -> 0.6366956013 | I10: =OFFSET(Componentes!I31,0,($L$1-1)*10) -> 1.094843788 | J10: =OFFSET(Componentes!J31,0,($L$1-1)*10) -> - | K10: =OFFSET(Componentes!K31,0,($L$1-1)*10) -> - | L10: =OFFSET(Componentes!L31,0,($L$1-1)*10) -> -
B12: Componentes (1)
B13: Laboralidad | C13: =OFFSET(Componentes!C33,0,($L$1-1)*10) -> 0.1256947105 | D13: =OFFSET(Componentes!D33,0,($L$1-1)*10) -> -0.2727796717 | E13: =OFFSET(Componentes!E33,0,($L$1-1)*10) -> 0.1950551445 | F13: =OFFSET(Componentes!F33,0,($L$1-1)*10) -> -0.01468303779 | G13: =OFFSET(Componentes!G33,0,($L$1-1)*10) -> -0.08930755047 | H13: =OFFSET(Componentes!H33,0,($L$1-1)*10) -> 0.6000151671 | I13: =OFFSET(Componentes!I33,0,($L$1-1)*10) -> -0.2942831758 | J13: =OFFSET(Componentes!J33,0,($L$1-1)*10) -> - | K13: =OFFSET(Componentes!K33,0,($L$1-1)*10) -> - | L13: =OFFSET(Componentes!L33,0,($L$1-1)*10) -> -
B14: Temperatura (2) | C14: =OFFSET(Componentes!C34,0,($L$1-1)*10) -> -1.027934365 | D14: =OFFSET(Componentes!D34,0,($L$1-1)*10) -> 0.6896690035 | E14: =OFFSET(Componentes!E34,0,($L$1-1)*10) -> -0.2720854883 | F14: =OFFSET(Componentes!F34,0,($L$1-1)*10) -> -0.984818408 | G14: =OFFSET(Componentes!G34,0,($L$1-1)*10) -> 0.3584735471 | H14: =OFFSET(Componentes!H34,0,($L$1-1)*10) -> 0.08915295985 | I14: =OFFSET(Componentes!I34,0,($L$1-1)*10) -> -0.0199257276 | J14: =OFFSET(Componentes!J34,0,($L$1-1)*10) -> - | K14: =OFFSET(Componentes!K34,0,($L$1-1)*10) -> - | L14: =OFFSET(Componentes!L34,0,($L$1-1)*10) -> -
B15: Demanda corregida | C15: =OFFSET(Componentes!C35,0,($L$1-1)*10) -> -0.9899042399 | D15: =OFFSET(Componentes!D35,0,($L$1-1)*10) -> -1.818774848 | E15: =OFFSET(Componentes!E35,0,($L$1-1)*10) -> -2.163244696 | F15: =OFFSET(Componentes!F35,0,($L$1-1)*10) -> -0.1469858495 | G15: =OFFSET(Componentes!G35,0,($L$1-1)*10) -> 1.736788672 | H15: =OFFSET(Componentes!H35,0,($L$1-1)*10) -> -0.05247252564 | I15: =OFFSET(Componentes!I35,0,($L$1-1)*10) -> 1.409052691 | J15: =OFFSET(Componentes!J35,0,($L$1-1)*10) -> - | K15: =OFFSET(Componentes!K35,0,($L$1-1)*10) -> - | L15: =OFFSET(Componentes!L35,0,($L$1-1)*10) -> -
B17: (1) La suma de los componentes es igual al tanto por ciento de variación de la demanda total.
B18: (2) Una media de las temperaturas máximas diarias por debajo o por encima de los umbrales de invierno y verano respectivamente, produce aumento de la demanda.
B19: =IF(MONTH('AVISO LEGAL'!J2)=1,"Datos a 31 de diciembre.",CONCATENATE("Datos a 31 de diciembre. Para el año ",YEAR('AVISO LEGAL'!J2), " datos a ",TEXT('AVISO LEGAL'!J2-30,"mmmm")," de ",YEAR('AVISO LEGAL'!J2),".")) -> Datos a 31 de diciembre. Para el año 2017 datos a agosto de 2017.

Sheet Componentes mes Baleares
O1: 7
M4: Sistema eléctrico
M5: Horizonte temporal
M6: Periodo
C8: Ene. | D8: Feb. | E8: Mar. | F8: Abr. | G8: May. | H8: Jun. | I8: Jul. | J8: Ago. | K8: Sep. | L8: Oct. | M8: Nov. | N8: Dic. | O8: =OFFSET(Año!B22,($O$1-1),0) -> 2017
B10: Variación mensual | C10: =OFFSET(Componentes!C10,0,($O$1-1)*13) -> 16.05221768 | D10: =OFFSET(Componentes!D10,0,($O$1-1)*13) -> -1.950664457 | E10: =OFFSET(Componentes!E10,0,($O$1-1)*13) -> -8.685128845 | F10: =OFFSET(Componentes!F10,0,($O$1-1)*13) -> 0.2966267453 | G10: =OFFSET(Componentes!G10,0,($O$1-1)*13) -> 2.458295107 | H10: =OFFSET(Componentes!H10,0,($O$1-1)*13) -> 8.392340656 | I10: =OFFSET(Componentes!I10,0,($O$1-1)*13) -> 5.921182118 | J10: =OFFSET(Componentes!J10,0,($O$1-1)*13) -> 9.089539744 | K10: =OFFSET(Componentes!K10,0,($O$1-1)*13) -> - | L10: =OFFSET(Componentes!L10,0,($O$1-1)*13) -> - | M10: =OFFSET(Componentes!M10,0,($O$1-1)*13) -> - | N10: =OFFSET(Componentes!N10,0,($O$1-1)*13) -> - | O10: =OFFSET(Componentes!O10,0,($O$1-1)*13) -> 4.376081716
B12: Componentes (1)
B13: Laboralidad | C13: =OFFSET(Componentes!C12,0,($O$1-1)*13) -> -0.6385345442 | D13: =OFFSET(Componentes!D12,0,($O$1-1)*13) -> -4.321312703 | E13: =OFFSET(Componentes!E12,0,($O$1-1)*13) -> -0.04342338988 | F13: =OFFSET(Componentes!F12,0,($O$1-1)*13) -> -1.595648646 | G13: =OFFSET(Componentes!G12,0,($O$1-1)*13) -> -0.6599779755 | H13: =OFFSET(Componentes!H12,0,($O$1-1)*13) -> -0.4186281323 | I13: =OFFSET(Componentes!I12,0,($O$1-1)*13) -> -0.4064150275 | J13: =OFFSET(Componentes!J12,0,($O$1-1)*13) -> -0.2141737757 | K13: =OFFSET(Componentes!K12,0,($O$1-1)*13) -> - | L13: =OFFSET(Componentes!L12,0,($O$1-1)*13) -> - | M13: =OFFSET(Componentes!M12,0,($O$1-1)*13) -> - | N13: =OFFSET(Componentes!N12,0,($O$1-1)*13) -> - | O13: =OFFSET(Componentes!O12,0,($O$1-1)*13) -> -0.1806211618
B14: Temperatura (2) | C14: =OFFSET(Componentes!C13,0,($O$1-1)*13) -> 9.378752829 | D14: =OFFSET(Componentes!D13,0,($O$1-1)*13) -> -0.3206981295 | E14: =OFFSET(Componentes!E13,0,($O$1-1)*13) -> -4.139615207 | F14: =OFFSET(Componentes!F13,0,($O$1-1)*13) -> -0.8750111745 | G14: =OFFSET(Componentes!G13,0,($O$1-1)*13) -> 2.414113485 | H14: =OFFSET(Componentes!H13,0,($O$1-1)*13) -> 3.027294027 | I14: =OFFSET(Componentes!I13,0,($O$1-1)*13) -> 0.5090401413 | J14: =OFFSET(Componentes!J13,0,($O$1-1)*13) -> 4.336238199 | K14: =OFFSET(Componentes!K13,0,($O$1-1)*13) -> - | L14: =OFFSET(Componentes!L13,0,($O$1-1)*13) -> - | M14: =OFFSET(Componentes!M13,0,($O$1-1)*13) -> - | N14: =OFFSET(Componentes!N13,0,($O$1-1)*13) -> - | O14: =OFFSET(Componentes!O13,0,($O$1-1)*13) -> 1.923392673
B15: Demanda corregida | C15: =OFFSET(Componentes!C14,0,($O$1-1)*13) -> 7.3119994 | D15: =OFFSET(Componentes!D14,0,($O$1-1)*13) -> 2.691346375 | E15: =OFFSET(Componentes!E14,0,($O$1-1)*13) -> -4.502090248 | F15: =OFFSET(Componentes!F14,0,($O$1-1)*13) -> 2.767286566 | G15: =OFFSET(Componentes!G14,0,($O$1-1)*13) -> 0.7041595983 | H15: =OFFSET(Componentes!H14,0,($O$1-1)*13) -> 5.783674761 | I15: =OFFSET(Componentes!I14,0,($O$1-1)*13) -> 5.818557004 | J15: =OFFSET(Componentes!J14,0,($O$1-1)*13) -> 4.967475321 | K15: =OFFSET(Componentes!K14,0,($O$1-1)*13) -> - | L15: =OFFSET(Componentes!L14,0,($O$1-1)*13) -> - | M15: =OFFSET(Componentes!M14,0,($O$1-1)*13) -> - | N15: =OFFSET(Componentes!N14,0,($O$1-1)*13) -> - | O15: =OFFSET(Componentes!O14,0,($O$1-1)*13) -> 2.633310205
B17: (1) La suma de los componentes es igual al tanto por ciento de variación de la demanda total.
B18: (2) Una media de las temperaturas máximas diarias por debajo o por encima de los umbrales de invierno y verano respectivamente, produce aumento de la demanda.

Sheet Componentes año Baleares
L1: 1
J4: Sistema eléctrico
J5: Horizonte temporal
J6: Periodo
C8: =OFFSET(Componentes!C37,0,($L$1-1)*10) -> 2011 | D8: =OFFSET(Componentes!D37,0,($L$1-1)*10) -> 2012 | E8: =OFFSET(Componentes!E37,0,($L$1-1)*10) -> 2013 | F8: =OFFSET(Componentes!F37,0,($L$1-1)*10) -> 2014 | G8: =OFFSET(Componentes!G37,0,($L$1-1)*10) -> 2015 | H8: =OFFSET(Componentes!H37,0,($L$1-1)*10) -> 2016 | I8: =OFFSET(Componentes!I37,0,($L$1-1)*10) -> 2017 | J8: =OFFSET(Componentes!J37,0,($L$1-1)*10) -> 2018 | K8: =OFFSET(Componentes!K37,0,($L$1-1)*10) -> 2019 | L8: =OFFSET(Componentes!L37,0,($L$1-1)*10) -> 2020
B10: Variación anual | C10: =OFFSET(Componentes!C38,0,($L$1-1)*10) -> -1.660652455 | D10: =OFFSET(Componentes!D38,0,($L$1-1)*10) -> 1.380811744 | E10: =OFFSET(Componentes!E38,0,($L$1-1)*10) -> -2.560166878 | F10: =OFFSET(Componentes!F38,0,($L$1-1)*10) -> -1.553096896 | G10: =OFFSET(Componentes!G38,0,($L$1-1)*10) -> 3.777874219 | H10: =OFFSET(Componentes!H38,0,($L$1-1)*10) -> 0.6166345801 | I10: =OFFSET(Componentes!I38,0,($L$1-1)*10) -> 4.376081716 | J10: =OFFSET(Componentes!J38,0,($L$1-1)*10) -> - | K10: =OFFSET(Componentes!K38,0,($L$1-1)*10) -> - | L10: =OFFSET(Componentes!L38,0,($L$1-1)*10) -> -
B12: Componentes (1)
B13: Laboralidad | C13: =OFFSET(Componentes!C40,0,($L$1-1)*10) -> -0.05360259252 | D13: =OFFSET(Componentes!D40,0,($L$1-1)*10) -> -0.02670709284 | E13: =OFFSET(Componentes!E40,0,($L$1-1)*10) -> -0.1356038236 | F13: =OFFSET(Componentes!F40,0,($L$1-1)*10) -> 0.2352407747 | G13: =OFFSET(Componentes!G40,0,($L$1-1)*10) -> 0.1727220386 | H13: =OFFSET(Componentes!H40,0,($L$1-1)*10) -> 0.210992142 | I13: =OFFSET(Componentes!I40,0,($L$1-1)*10) -> -0.1806211618 | J13: =OFFSET(Componentes!J40,0,($L$1-1)*10) -> - | K13: =OFFSET(Componentes!K40,0,($L$1-1)*10) -> - | L13: =OFFSET(Componentes!L40,0,($L$1-1)*10) -> -
B14: Temperatura (2) | C14: =OFFSET(Componentes!C41,0,($L$1-1)*10) -> -1.468024458 | D14: =OFFSET(Componentes!D41,0,($L$1-1)*10) -> 1.534335067 | E14: =OFFSET(Componentes!E41,0,($L$1-1)*10) -> -1.016716942 | F14: =OFFSET(Componentes!F41,0,($L$1-1)*10) -> 0.1922373557 | G14: =OFFSET(Componentes!G41,0,($L$1-1)*10) -> 0.9300797226 | H14: =OFFSET(Componentes!H41,0,($L$1-1)*10) -> -1.657082883 | I14: =OFFSET(Componentes!I41,0,($L$1-1)*10) -> 1.923392673 | J14: =OFFSET(Componentes!J41,0,($L$1-1)*10) -> - | K14: =OFFSET(Componentes!K41,0,($L$1-1)*10) -> - | L14: =OFFSET(Componentes!L41,0,($L$1-1)*10) -> -
B15: Demanda corregida | C15: =OFFSET(Componentes!C42,0,($L$1-1)*10) -> -0.1390254046 | D15: =OFFSET(Componentes!D42,0,($L$1-1)*10) -> -0.1268162301 | E15: =OFFSET(Componentes!E42,0,($L$1-1)*10) -> -1.407846113 | F15: =OFFSET(Componentes!F42,0,($L$1-1)*10) -> -1.980575027 | G15: =OFFSET(Componentes!G42,0,($L$1-1)*10) -> 2.6750872 | H15: =OFFSET(Componentes!H42,0,($L$1-1)*10) -> 2.062725321 | I15: =OFFSET(Componentes!I42,0,($L$1-1)*10) -> 2.633310205 | J15: =OFFSET(Componentes!J42,0,($L$1-1)*10) -> - | K15: =OFFSET(Componentes!K42,0,($L$1-1)*10) -> - | L15: =OFFSET(Componentes!L42,0,($L$1-1)*10) -> -
B17: (1) La suma de los componentes es igual al tanto por ciento de variación de la demanda total.
B18: (2) Una media de las temperaturas máximas diarias por debajo o por encima de los umbrales de invierno y verano respectivamente, produce aumento de la demanda.
B19: =IF(MONTH('AVISO LEGAL'!J2)=1,"Datos a 31 de diciembre.",CONCATENATE("Datos a 31 de diciembre. Para el año ",YEAR('AVISO LEGAL'!J2), " datos a ",TEXT('AVISO LEGAL'!J2-30,"mmmm")," de ",YEAR('AVISO LEGAL'!J2),".")) -> Datos a 31 de diciembre. Para el año 2017 datos a agosto de 2017.

Sheet Componentes mes Canarias
O1: 7
M4: Sistema eléctrico
M5: Horizonte temporal
M6: Periodo
C8: Ene. | D8: Feb. | E8: Mar. | F8: Abr. | G8: May. | H8: Jun. | I8: Jul. | J8: Ago. | K8: Sep. | L8: Oct. | M8: Nov. | N8: Dic. | O8: =OFFSET(Año!B22,($O$1-1),0) -> 2017
B10: Variación mensual | C10: =OFFSET(Componentes!C17,0,($O$1-1)*13) -> 2.800757528 | D10: =OFFSET(Componentes!D17,0,($O$1-1)*13) -> -2.181846584 | E10: =OFFSET(Componentes!E17,0,($O$1-1)*13) -> 2.399256793 | F10: =OFFSET(Componentes!F17,0,($O$1-1)*13) -> 2.226707106 | G10: =OFFSET(Componentes!G17,0,($O$1-1)*13) -> 4.214213427 | H10: =OFFSET(Componentes!H17,0,($O$1-1)*13) -> 3.27282872 | I10: =OFFSET(Componentes!I17,0,($O$1-1)*13) -> 1.314627179 | J10: =OFFSET(Componentes!J17,0,($O$1-1)*13) -> 2.320737022 | K10: =OFFSET(Componentes!K17,0,($O$1-1)*13) -> - | L10: =OFFSET(Componentes!L17,0,($O$1-1)*13) -> - | M10: =OFFSET(Componentes!M17,0,($O$1-1)*13) -> - | N10: =OFFSET(Componentes!N17,0,($O$1-1)*13) -> - | O10: =OFFSET(Componentes!O17,0,($O$1-1)*13) -> 2.063275913
B12: Componentes (1)
B13: Laboralidad | C13: =OFFSET(Componentes!C19,0,($O$1-1)*13) -> 0.5306875012 | D13: =OFFSET(Componentes!D19,0,($O$1-1)*13) -> -4.018857909 | E13: =OFFSET(Componentes!E19,0,($O$1-1)*13) -> -0.04997851595 | F13: =OFFSET(Componentes!F19,0,($O$1-1)*13) -> -1.620651605 | G13: =OFFSET(Componentes!G19,0,($O$1-1)*13) -> 0.05641277176 | H13: =OFFSET(Componentes!H19,0,($O$1-1)*13) -> -0.03684913604 | I13: =OFFSET(Componentes!I19,0,($O$1-1)*13) -> -0.04062596819 | J13: =OFFSET(Componentes!J19,0,($O$1-1)*13) -> -0.0647612686 | K13: =OFFSET(Componentes!K19,0,($O$1-1)*13) -> - | L13: =OFFSET(Componentes!L19,0,($O$1-1)*13) -> - | M13: =OFFSET(Componentes!M19,0,($O$1-1)*13) -> - | N13: =OFFSET(Componentes!N19,0,($O$1-1)*13) -> - | O13: =OFFSET(Componentes!O19,0,($O$1-1)*13) -> 0.2077618615
B14: Temperatura (2) | C14: =OFFSET(Componentes!C20,0,($O$1-1)*13) -> 0.1636437181 | D14: =OFFSET(Componentes!D20,0,($O$1-1)*13) -> -0.01900012165 | E14: =OFFSET(Componentes!E20,0,($O$1-1)*13) -> 0.03495235035 | F14: =OFFSET(Componentes!F20,0,($O$1-1)*13) -> 0.06729657315 | G14: =OFFSET(Componentes!G20,0,($O$1-1)*13) -> 0.008257711976 | H14: =OFFSET(Componentes!H20,0,($O$1-1)*13) -> 0.08298292369 | I14: =OFFSET(Componentes!I20,0,($O$1-1)*13) -> -0.1768461872 | J14: =OFFSET(Componentes!J20,0,($O$1-1)*13) -> 0.04598958161 | K14: =OFFSET(Componentes!K20,0,($O$1-1)*13) -> - | L14: =OFFSET(Componentes!L20,0,($O$1-1)*13) -> - | M14: =OFFSET(Componentes!M20,0,($O$1-1)*13) -> - | N14: =OFFSET(Componentes!N20,0,($O$1-1)*13) -> - | O14: =OFFSET(Componentes!O20,0,($O$1-1)*13) -> 0.02403568354
B15: Demanda corregida | C15: =OFFSET(Componentes!C21,0,($O$1-1)*13) -> 2.106426309 | D15: =OFFSET(Componentes!D21,0,($O$1-1)*13) -> 1.856011447 | E15: =OFFSET(Componentes!E21,0,($O$1-1)*13) -> 2.414282959 | F15: =OFFSET(Componentes!F21,0,($O$1-1)*13) -> 3.780062138 | G15: =OFFSET(Componentes!G21,0,($O$1-1)*13) -> 4.149542943 | H15: =OFFSET(Componentes!H21,0,($O$1-1)*13) -> 3.226694932 | I15: =OFFSET(Componentes!I21,0,($O$1-1)*13) -> 1.532099334 | J15: =OFFSET(Componentes!J21,0,($O$1-1)*13) -> 2.339508709 | K15: =OFFSET(Componentes!K21,0,($O$1-1)*13) -> - | L15: =OFFSET(Componentes!L21,0,($O$1-1)*13) -> - | M15: =OFFSET(Componentes!M21,0,($O$1-1)*13) -> - | N15: =OFFSET(Componentes!N21,0,($O$1-1)*13) -> - | O15: =OFFSET(Componentes!O21,0,($O$1-1)*13) -> 1.831478368
B17: (1) La suma de los componentes es igual al tanto por ciento de variación de la demanda total.
B18: (2) Una media de las temperaturas máximas diarias por debajo o por encima de los umbrales de invierno y verano respectivamente, produce aumento de la demanda.

Sheet Componentes año Canarias
L1: 1
J4: Sistema eléctrico
J5: Horizonte temporal
J6: Periodo
C8: =OFFSET(Componentes!C44,0,($L$1-1)*10) -> 2011 | D8: =OFFSET(Componentes!D44,0,($L$1-1)*10) -> 2012 | E8: =OFFSET(Componentes!E44,0,($L$1-1)*10) -> 2013 | F8: =OFFSET(Componentes!F44,0,($L$1-1)*10) -> 2014 | G8: =OFFSET(Componentes!G44,0,($L$1-1)*10) -> 2015 | H8: =OFFSET(Componentes!H44,0,($L$1-1)*10) -> 2016 | I8: =OFFSET(Componentes!I44,0,($L$1-1)*10) -> 2017 | J8: =OFFSET(Componentes!J44,0,($L$1-1)*10) -> 2018 | K8: =OFFSET(Componentes!K44,0,($L$1-1)*10) -> 2019 | L8: =OFFSET(Componentes!L44,0,($L$1-1)*10) -> 2020
B10: Variación anual | C10: =OFFSET(Componentes!C45,0,($L$1-1)*10) -> -0.2756998647 | D10: =OFFSET(Componentes!D45,0,($L$1-1)*10) -> 0.2514750954 | E10: =OFFSET(Componentes!E45,0,($L$1-1)*10) -> -3.023379541 | F10: =OFFSET(Componentes!F45,0,($L$1-1)*10) -> -0.5068397889 | G10: =OFFSET(Componentes!G45,0,($L$1-1)*10) -> 1.041798557 | H10: =OFFSET(Componentes!H45,0,($L$1-1)*10) -> 1.247662994 | I10: =OFFSET(Componentes!I45,0,($L$1-1)*10) -> 2.063275913 | J10: =OFFSET(Componentes!J45,0,($L$1-1)*10) -> - | K10: =OFFSET(Componentes!K45,0,($L$1-1)*10) -> - | L10: =OFFSET(Componentes!L45,0,($L$1-1)*10) -> -
B12: Componentes (1)
B13: Laboralidad | C13: =OFFSET(Componentes!C47,0,($L$1-1)*10) -> -0.009531395872 | D13: =OFFSET(Componentes!D47,0,($L$1-1)*10) -> -0.04154167058 | E13: =OFFSET(Componentes!E47,0,($L$1-1)*10) -> -0.2695515154 | F13: =OFFSET(Componentes!F47,0,($L$1-1)*10) -> -0.0159449817 | G13: =OFFSET(Componentes!G47,0,($L$1-1)*10) -> 0.1779619065 | H13: =OFFSET(Componentes!H47,0,($L$1-1)*10) -> 0.2549061614 | I13: =OFFSET(Componentes!I47,0,($L$1-1)*10) -> 0.2077618615 | J13: =OFFSET(Componentes!J47,0,($L$1-1)*10) -> - | K13: =OFFSET(Componentes!K47,0,($L$1-1)*10) -> - | L13: =OFFSET(Componentes!L47,0,($L$1-1)*10) -> -
B14: Temperatura (2) | C14: =OFFSET(Componentes!C48,0,($L$1-1)*10) -> -0.2863990663 | D14: =OFFSET(Componentes!D48,0,($L$1-1)*10) -> 0.2210717184 | E14: =OFFSET(Componentes!E48,0,($L$1-1)*10) -> -0.516236401 | F14: =OFFSET(Componentes!F48,0,($L$1-1)*10) -> -1.108967145 | G14: =OFFSET(Componentes!G48,0,($L$1-1)*10) -> 0.007922619716 | H14: =OFFSET(Componentes!H48,0,($L$1-1)*10) -> -0.0394265983 | I14: =OFFSET(Componentes!I48,0,($L$1-1)*10) -> 0.02403568354 | J14: =OFFSET(Componentes!J48,0,($L$1-1)*10) -> - | K14: =OFFSET(Componentes!K48,0,($L$1-1)*10) -> - | L14: =OFFSET(Componentes!L48,0,($L$1-1)*10) -> -
B15: Demanda corregida | C15: =OFFSET(Componentes!C49,0,($L$1-1)*10) -> 0.02023059749 | D15: =OFFSET(Componentes!D49,0,($L$1-1)*10) -> 0.07194504761 | E15: =OFFSET(Componentes!E49,0,($L$1-1)*10) -> -1.96114536 | F15: =OFFSET(Componentes!F49,0,($L$1-1)*10) -> 0.6180723378 | G15: =OFFSET(Componentes!G49,0,($L$1-1)*10) -> 0.8559149762 | H15: =OFFSET(Componentes!H49,0,($L$1-1)*10) -> 1.032183431 | I15: =OFFSET(Componentes!I49,0,($L$1-1)*10) -> 1.831478368 | J15: =OFFSET(Componentes!J49,0,($L$1-1)*10) -> - | K15: =OFFSET(Componentes!K49,0,($L$1-1)*10) -> - | L15: =OFFSET(Componentes!L49,0,($L$1-1)*10) -> -
B17: (1) La suma de los componentes es igual al tanto por ciento de variación de la demanda total.
B18: (2) Una media de las temperaturas máximas diarias por debajo o por encima de los umbrales de invierno y verano respectivamente, produce aumento de la demanda.
B19: =IF(MONTH('AVISO LEGAL'!J2)=1,"Datos a 31 de diciembre.",CONCATENATE("Datos a 31 de diciembre. Para el año ",YEAR('AVISO LEGAL'!J2), " datos a ",TEXT('AVISO LEGAL'!J2-30,"mmmm")," de ",YEAR('AVISO LEGAL'!J2),".")) -> Datos a 31 de diciembre. Para el año 2017 datos a agosto de 2017.

Sheet Componentes (hidden)
B2: Componentes mensuales del crecimiento de la demanda peninsular (%) | C2: 1991-01-01 | D2: 1991-02-01 | E2: 1991-03-01 | F2: 1991-04-01 | G2: 1991-05-01 | H2: 1991-06-01 | I2: 1991-07-01 | J2: 1991-08-01 | K2: 1991-09-01 | L2: 1991-10-01 | M2: 1991-11-01 | N2: 1991-12-01 | O2: 1991 | P2: 1992-01-01 | Q2: 1992-02-01 | R2: 1992-03-01 | S2: 1992-04-01 | T2: 1992-05-01 | U2: 1992-06-01 | V2: 1992-07-01 | W2: 1992-08-01 | X2: 1992-09-01 | Y2: 1992-10-01 | Z2: 1992-11-01 | AA2: 1992-12-01 | AB2: 1992 | AC2: 1993-01-01 | AD2: 1993-02-01 | AE2: 1993-03-01 | AF2: 1993-04-01 | AG2: 1993-05-01 | AH2: 1993-06-01 | AI2: 1993-07-01 | AJ2: 1993-08-01 | AK2: 1993-09-01 | AL2: 1993-10-01 | AM2: 1993-11-01 | AN2: 1993-12-01 | AO2: 1993 | AP2: 1994-01-01 | AQ2: 1994-02-01 | AR2: 1994-03-01 | AS2: 1994-04-01 | AT2: 1994-05-01 | AU2: 1994-06-01 | AV2: 1994-07-01 | AW2: 1994-08-01 | AX2: 1994-09-01 | AY2: 1994-10-01 | AZ2: 1994-11-01 | BA2: 1994-12-01 | BB2: 1994 | BC2: 1995-01-01 | BD2: 1995-02-01 | BE2: 1995-03-01 | BF2: 1995-04-01 | BG2: 1995-05-01 | BH2: 1995-06-01 | BI2: 1995-07-01 | BJ2: 1995-08-01 | BK2: 1995-09-01 | BL2: 1995-10-01 | BM2: 1995-11-01 | BN2: 1995-12-01 | BO2: 1995 | BP2: 1996-01-01 | BQ2: 1996-02-01 | BR2: 1996-03-01 | BS2: 1996-04-01 | BT2: 1996-05-01 | BU2: 1996-06-01 | BV2: 1996-07-01 | BW2: 1996-08-01 | BX2: 1996-09-01 | BY2: 1996-10-01 | BZ2: 1996-11-01 | CA2: 1996-12-01 | CB2: 1996 | CC2: 1997-01-01 | CD2: 1997-02-01 | CE2: 1997-03-01 | CF2: 1997-04-01 | CG2: 1997-05-01 | CH2: 1997-06-01 | CI2: 1997-07-01 | CJ2: 1997-08-01 | CK2: 1997-09-01 | CL2: 1997-10-01 | CM2: 1997-11-01 | CN2: 1997-12-01 | CO2: 1997 | CP2: 1998-01-01 | CQ2: 1998-02-01 | CR2: 1998-03-01 | CS2: 1998-04-01 | CT2: 1998-05-01 | CU2: 1998-06-01 | CV2: 1998-07-01 | CW2: 1998-08-01 | CX2: 1998-09-01 | CY2: 1998-10-01 | CZ2: 1998-11-01 | DA2: 1998-12-01 | DB2: 1998 | DC2: 1999-01-01 | DD2: 1999-02-01 | DE2: 1999-03-01 | DF2: 1999-04-01 | DG2: 1999-05-01 | DH2: 1999-06-01 | DI2: 1999-07-01 | DJ2: 1999-08-01 | DK2: 1999-09-01 | DL2: 1999-10-01 | DM2: 1999-11-01 | DN2: 1999-12-01 | DO2: 1999 | DP2: 2000-01-01 | DQ2: 2000-02-01 | DR2: 2000-03-01 | DS2: 2000-04-01 | DT2: 2000-05-01 | DU2: 2000-06-01 | DV2: 2000-07-01 | DW2: 2000-08-01 | DX2: 2000-09-01 | DY2: 2000-10-01 | DZ2: 2000-11-01 | EA2: 2000-12-01 | EB2: 2000 | EC2: 2001-01-01 | ED2: 2001-02-01 | EE2: 2001-03-01 | EF2: 2001-04-01 | EG2: 2001-05-01 | EH2: 2001-06-01 | EI2: 2001-07-01 | EJ2: 2001-08-01 | EK2: 2001-09-01 | EL2: 2001-10-01 | EM2: 2001-11-01 | EN2: 2001-12-01 | EO2: 2001 | EP2: 2002-01-01 | EQ2: 2002-02-01 | ER2: 2002-03-01 | ES2: 2002-04-01 | ET2: 2002-05-01 | EU2: 2002-06-01 | EV2: 2002-07-01 | EW2: 2002-08-01 | EX2: 2002-09-01 | EY2: 2002-10-01 | EZ2: 2002-11-01 | FA2: 2002-12-01 | FB2: 2002 | FC2: 2003-01-01 | FD2: 2003-02-01 | FE2: 2003-03-01 | FF2: 2003-04-01 | FG2: 2003-05-01 | FH2: 2003-06-01 | FI2: 2003-07-01 | FJ2: 2003-08-01 | FK2: 2003-09-01 | FL2: 2003-10-01 | FM2: 2003-11-01 | FN2: 2003-12-01 | FO2: 2003 | FP2: 2004-01-01 | FQ2: 2004-02-01 | FR2: 2004-03-01 | FS2: 2004-04-01 | FT2: 2004-05-01 | FU2: 2004-06-01 | FV2: 2004-07-01 | FW2: 2004-08-01 | FX2: 2004-09-01 | FY2: 2004-10-01 | FZ2: 2004-11-01 | GA2: 2004-12-01 | GB2: 2004 | GC2: 2005-01-01 | GD2: 2005-02-01 | GE2: 2005-03-01 | GF2: 2005-04-01 | GG2: 2005-05-01 | GH2: 2005-06-01 | GI2: 2005-07-01 | GJ2: 2005-08-01 | GK2: 2005-09-01 | GL2: 2005-10-01 | GM2: 2005-11-01 | GN2: 2005-12-01 | GO2: 2005 | GP2: 2006-01-01 | GQ2: 2006-02-01 | GR2: 2006-03-01 | GS2: 2006-04-01 | GT2: 2006-05-01 | GU2: 2006-06-01 | GV2: 2006-07-01 | GW2: 2006-08-01 | GX2: 2006-09-01 | GY2: 2006-10-01 | GZ2: 2006-11-01 | HA2: 2006-12-01 | HB2: 2006 | HC2: 2007-01-01 | HD2: 2007-02-01 | HE2: 2007-03-01 | HF2: 2007-04-01 | HG2: 2007-05-01 | HH2: 2007-06-01 | HI2: 2007-07-01 | HJ2: 2007-08-01 | HK2: 2007-09-01 | HL2: 2007-10-01 | HM2: 2007-11-01 | HN2: 2007-12-01 | HO2: 2007 | HP2: 2008-01-01 | HQ2: 2008-02-01 | HR2: 2008-03-01 | HS2: 2008-04-01 | HT2: 2008-05-01 | HU2: 2008-06-01 | HV2: 2008-07-01 | HW2: 2008-08-01 | HX2: 2008-09-01 | HY2: 2008-10-01 | HZ2: 2008-11-01 | IA2: 2008-12-01 | IB2: 2008 | IC2: 2009-01-01 | ID2: 2009-02-01 | IE2: 2009-03-01 | IF2: 2009-04-01 | IG2: 2009-05-01 | IH2: 2009-06-01 | II2: 2009-07-01 | IJ2: 2009-08-01 | IK2: 2009-09-01 | IL2: 2009-10-01 | IM2: 2009-11-01 | IN2: 2009-12-01 | IO2: 2009 | IP2: 2010-01-01 | IQ2: 2010-02-01 | IR2: 2010-03-01 | IS2: 2010-04-01 | IT2: 2010-05-01 | IU2: 2010-06-01 | IV2: 2010-07-01 | IW2: 2010-08-01 | IX2: 2010-09-01 | IY2: 2010-10-01 | IZ2: 2010-11-01 | JA2: 2010-12-01 | JB2: 2010 | JC2: 2011-01-01 | JD2: 2011-02-01 | JE2: 2011-03-01 | JF2: 2011-04-01 | JG2: 2011-05-01 | JH2: 2011-06-01 | JI2: 2011-07-01 | JJ2: 2011-08-01 | JK2: 2011-09-01 | JL2: 2011-10-01 | JM2: 2011-11-01 | JN2: 2011-12-01 | JO2: 2011 | JP2: 2012-01-01 | JQ2: 2012-02-01 | JR2: 2012-03-01 | JS2: 2012-04-01 | JT2: 2012-05-01 | JU2: 2012-06-01 | JV2: 2012-07-01 | JW2: 2012-08-01 | JX2: 2012-09-01 | JY2: 2012-10-01 | JZ2: 2012-11-01 | KA2: 2012-12-01 | KB2: 2012 | KC2: 2013-01-01 | KD2: 2013-02-01 | KE2: 2013-03-01 | KF2: 2013-04-01 | KG2: 2013-05-01 | KH2: 2013-06-01 | KI2: 2013-07-01 | KJ2: 2013-08-01 | KK2: 2013-09-01 | KL2: 2013-10-01 | KM2: 2013-11-01 | KN2: 2013-12-01 | KO2: 2013 | KP2: 2014-01-01 | KQ2: 2014-02-01 | KR2: 2014-03-01 | KS2: 2014-04-01 | KT2: 2014-05-01 | KU2: 2014-06-01 | KV2: 2014-07-01 | KW2: 2014-08-01 | KX2: 2014-09-01 | KY2: 2014-10-01 | KZ2: 2014-11-01 | LA2: 2014-12-01 | LB2: 2014 | LC2: 2015-01-01 | LD2: 2015-02-01 | LE2: 2015-03-01 | LF2: 2015-04-01 | LG2: 2015-05-01 | LH2: 2015-06-01 | LI2: 2015-07-01 | LJ2: 2015-08-01 | LK2: 2015-09-01 | LL2: 2015-10-01 | LM2: 2015-11-01 | LN2: 2015-12-01 | LO2: 2015 | LP2: 2016-01-01 | LQ2: 2016-02-01 | LR2: 2016-03-01 | LS2: 2016-04-01 | LT2: 2016-05-01 | LU2: 2016-06-01 | LV2: 2016-07-01 | LW2: 2016-08-01 | LX2: 2016-09-01 | LY2: 2016-10-01 | LZ2: 2016-11-01 | MA2: 2016-12-01 | MB2: 2016 | MC2: 2017-01-01 | MD2: 2017-02-01 | ME2: 2017-03-01 | MF2: 2017-04-01 | MG2: 2017-05-01 | MH2: 2017-06-01 | MI2: 2017-07-01 | MJ2: 2017-08-01 | MK2: 2017-09-01 | ML2: 2017-10-01 | MM2: 2017-11-01 | MN2: 2017-12-01 | MO2: 2017 | MP2: 2018-01-01 | MQ2: 2018-02-01 | MR2: 2018-03-01 | MS2: 2018-04-01 | MT2: 2018-05-01 | MU2: 2018-06-01 | MV2: 2018-07-01 | MW2: 2018-08-01 | MX2: 2018-09-01 | MY2: 2018-10-01 | MZ2: 2018-11-01 | NA2: 2018-12-01 | NB2: 2018 | NC2: 2019-01-01 | ND2: 2019-02-01 | NE2: 2019-03-01 | NF2: 2019-04-01 | NG2: 2019-05-01 | NH2: 2019-06-01 | NI2: 2019-07-01 | NJ2: 2019-08-01 | NK2: 2019-09-01 | NL2: 2019-10-01 | NM2: 2019-11-01 | NN2: 2019-12-01 | NO2: 2019 | NP2: 2020-01-01 | NQ2: 2020-02-01 | NR2: 2020-03-01 | NS2: 2020-04-01 | NT2: 2020-05-01 | NU2: 2020-06-01 | NV2: 2020-07-01 | NW2: 2020-08-01 | NX2: 2020-09-01 | NY2: 2020-10-01 | NZ2: 2020-11-01 | OA2: 2020-12-01 | OB2: 2020
B3: Variación mensual | C3: 5.196 | D3: 14.122 | E3: -0.337 | F3: 4.937 | G3: 4.965 | H3: 0.064 | I3: 2.69 | J3: 3.315 | K3: 4.328 | L3: 6.932 | M3: 3.919 | N3: -2.207 | O3: 3.876 | P3: 4.367 | Q3: 3.494 | R3: 7.024 | S3: 1.191 | T3: -0.092 | U3: -1.414 | V3: 1.45 | W3: 2.062 | X3: 0.445 | Y3: -1.141 | Z3: -4.431 | AA3: -2.208 | AB3: 0.906 | AC3: -5.081 | AD3: -4.822 | AE3: 1.582 | AF3: -2.641 | AG3: -1.572 | AH3: 3.645 | AI3: -1.009 | AJ3: 0.822 | AK3: -1.212 | AL3: 1.581 | AM3: 6.724 | AN3: 4.663 | AO3: 0.117 | AP3: 0.338 | AQ3: 1.974 | AR3: -2.945 | AS3: 6.528 | AT3: 5.874 | AU3: 7.216 | AV3: 7.689 | AW3: 8.152 | AX3: 6.645 | AY3: 0.941 | AZ3: -0.52 | BA3: 2.95 | BB3: 3.565 | BC3: 6.41 | BD3: -0.578 | BE3: 9.932 | BF3: 1.958 | BG3: 6.071 | BH3: 4.064 | BI3: 2.294 | BJ3: 3.845 | BK3: 2.635 | BL3: 4.257 | BM3: 3.089 | BN3: 1.205 | BO3: 3.756 | BP3: -0.971 | BQ3: 11.891 | BR3: 1.82 | BS3: 1.422 | BT3: 0.696 | BU3: 2.718 | BV3: 3.253 | BW3: 1.187 | BX3: 0.577 | BY3: 4.201 | BZ3: 5.156 | CA3: 3.973 | CB3: 2.949 | CC3: 6.807 | CD3: -7.549 | CE3: -4.381 | CF3: 7.903 | CG3: 4.672 | CH3: 2.092 | CI3: 2.415 | CJ3: 6.061 | CK3: 10.842 | CL3: 6.766 | CM3: 5.031 | CN3: 7.853 | CO3: 3.94 | CP3: 2.579 | CQ3: 9.567 | CR3: 11.101 | CS3: 5.984 | CT3: 4.898 | CU3: 8.034 | CV3: 10.382 | CW3: 6.483 | CX3: 3.834 | CY3: 3.996 | CZ3: 5.543 | DA3: 7.298 | DB3: 6.584 | DC3: 6.567 | DD3: 9.242 | DE3: 7.085 | DF3: 2.324 | DG3: 6.729 | DH3: 6.787 | DI3: 6.394 | DJ3: 6.02 | DK3: 5.822 | DL3: 4.508 | DM3: 10.576 | DN3: 5.924 | DO3: 6.507 | DP3: 10.367 | DQ3: 4.811 | DR3: 6.369 | DS3: 8.331 | DT3: 6.334 | DU3: 6.856 | DV3: 1.919 | DW3: 6.761 | DX3: 6.735 | DY3: 6.773 | DZ3: 4.09 | EA3: 1.082 | EB3: 5.794 | EC3: 2.489 | ED3: 5.125 | EE3: 5.24 | EF3: 2.174 | EG3: 7.238 | EH3: 6.174 | EI3: 6.451 | EJ3: 7.12 | EK3: 3.075 | EL3: 4.814 | EM3: 5.235 | EN3: 10.151 | EO3: 5.449 | EP3: 5.752 | EQ3: 3.062 | ER3: 2.304 | ES3: 9.585 | ET3: 3.009 | EU3: 1.692 | EV3: 4.661 | EW3: -1.004 | EX3: 2.878 | EY3: 5.383 | EZ3: 0.254 | FA3: -1.923 | FB3: 2.892 | FC3: 4.437 | FD3: 10.435 | FE3: 4.994 | FF3: -0.068 | FG3: 3.279 | FH3: 8.845 | FI3: 8.612 | FJ3: 12.847 | FK3: 7.189 | FL3: 6.221 | FM3: 5.777 | FN3: 8.694 | FO3: 6.749 | FP3: 0.653 | FQ3: 3.779 | FR3: 11.178 | FS3: 7.373 | FT3: 4.292 | FU3: 2.496 | FV3: 2.971 | FW3: 1.466 | FX3: 6.117 | FY3: 2.175 | FZ3: 7.037 | GA3: 5.075 | GB3: 4.489 | GC3: 10.345 | GD3: 7.713 | GE3: 2.146 | GF3: 4.319 | GG3: 3.697 | GH3: 5.767 | GI3: 4.301 | GJ3: 2.97 | GK3: 1.027 | GL3: 0.509 | GM3: 2.226 | GN3: 6.478 | GO3: 4.325 | GP3: 4.515 | GQ3: 1.287 | GR3: 4.465 | GS3: -1.933 | GT3: 6.085 | GU3: 1.705 | GV3: 6.96 | GW3: 5.396 | GX3: 6.892 | GY3: 6.324 | GZ3: -0.373 | HA3: 1.725 | HB3: 3.573 | HC3: 3.033 | HD3: -0.324 | HE3: 2.721 | HF3: 8.452 | HG3: 2.412 | HH3: 1.101 | HI3: -0.808 | HJ3: 2.472 | HK3: 0.286 | HL3: 3.747 | HM3: 9.363 | HN3: 3.663 | HO3: 2.924 | HP3: 1.134 | HQ3: 6.436 | HR3: -1.124 | HS3: 6.098 | HT3: 0.419 | HU3: 0.003 | HV3: 1.698 | HW3: 2.923 | HX3: 0.874 | HY3: -0.424 | HZ3: -2.065 | IA3: -2.404 | IB3: 1.055 | IC3: -2.711 | ID3: -7.367 | IE3: -6.214 | IF3: -10.553 | IG3: -6.248 | IH3: -2.564 | II3: -3.508 | IJ3: -2.673 | IK3: -3.231 | IL3: -3.785 | IM3: -6.362 | IN3: -1.893 | IO3: -4.731 | IP3: -0.08295091646 | IQ3: 4.909730815 | IR3: 9.031905161 | IS3: 3.676019807 | IT3: 3.975215021 | IU3: -0.4948839342 | IV3: 3.213000838 | IW3: 1.453529252 | IX3: 1.477270294 | IY3: 0.8548488984 | IZ3: 6.624865855 | JA3: 3.14563025 | JB3: 3.113747512 | JC3: -0.3497504179 | JD3: -2.263502363 | JE3: -0.3432877061 | JF3: -3.415022517 | JG3: -0.3750678318 | JH3: 1.476922503 | JI3: -4.961000707 | JJ3: 0.6189244444 | JK3: 1.540181527 | JL3: -0.7783730063 | JM3: -6.347869592 | JN3: -6.669179539 | JO3: -1.892143894 | JP3: -2.439772142 | JQ3: 7.157764865 | JR3: -6.200117586 | JS3: 1.160535726 | JT3: -0.7622436345 | JU3: 0.05667099603 | JV3: -1.481302979 | JW3: -0.6533529742 | JX3: -5.835268418 | JY3: -3.059093695 | JZ3: -1.671149392 | KA3: -2.508389165 | KB3: -1.401885516 | KC3: -2.326674359 | KD3: -10.45206799 | KE3: -0.512781487 | KF3: 0.107662455 | KG3: -3.684281885 | KH3: -7.750428947 | KI3: -0.1540731373 | KJ3: -3.916015486 | KK3: -0.4440757637 | KL3: 0.3230208048 | KM3: 1.038601643 | KN3: 1.957926471 | KO3: -2.24027504 | KP3: -2.215543316 | KQ3: -0.862865916 | KR3: -1.405844129 | KS3: -3.756223096 | KT3: 0.1616941813 | KU3: 2.384110323 | KV3: -2.380082067 | KW3: -2.104920176 | KX3: 2.819658196 | KY3: -0.4755427363 | KZ3: -3.395149356 | LA3: -1.941590355 | LB3: -1.146487295 | LC3: 2.904716526 | LD3: 3.146716109 | LE3: 1.261139464 | LF3: 0.4541255985 | LG3: 1.817131178 | LH3: 3.964183203 | LI3: 11.113118 | LJ3: 3.499920075 | LK3: -3.309370069 | LL3: 0.210034217 | LM3: 0.4780434861 | LN3: -1.997768887 | LO3: 1.993268017 | LP3: -5.395214094 | LQ3: -0.7837959488 | LR3: 1.383135451 | LS3: 5.701609274 | LT3: -0.5044828256 | LU3: -0.6383123826 | LV3: -5.268297087 | LW3: 2.718309452 | LX3: 6.29245456 | LY3: 0.4866844189 | LZ3: 3.753332024 | MA3: 2.042660914 | MB3: 0.6366956013 | MC3: 7.690429422 | MD3: -4.421816568 | ME3: -1.6698335 | MF3: -5.518982922 | MG3: 3.266983718 | MH3: 6.808278144 | MI3: 0.8874858393 | MJ3: 1.590916023 | MK3: - | ML3: - | MM3: - | MN3: - | MO3: 1.094843788 | MP3: - | MQ3: - | MR3: - | MS3: - | MT3: - | MU3: - | MV3: - | MW3: - | MX3: - | MY3: - | MZ3: - | NA3: - | NB3: - | NC3: - | ND3: - | NE3: - | NF3: - | NG3: - | NH3: - | NI3: - | NJ3: - | NK3: - | NL3: - | NM3: - | NN3: - | NO3: - | NP3: - | NQ3: - | NR3: - | NS3: - | NT3: - | NU3: - | NV3: - | NW3: - | NX3: - | NY3: - | NZ3: - | OA3: - | OB3: -
B5: Laboralidad | C5: 0.296 | D5: -0.174 | E5: -4.103 | F5: 3.162 | G5: -0.22 | H5: -0.979 | I5: -0.355 | J5: 1.522 | K5: 0.711 | L5: 0.659 | M5: -0.187 | N5: -0.321 | O5: -0.009 | P5: -0.512 | Q5: 3.429 | R5: 3.002 | S5: -2.1 | T5: -0.7 | U5: 0.458 | V5: 1.354 | W5: -1.881 | X5: 0.646 | Y5: -0.546 | Z5: 0.172 | AA5: 1.685 | AB5: 0.398 | AC5: -1.801 | AD5: -3.113 | AE5: 1.155 | AF5: 0 | AG5: 0.582 | AH5: 0.405 | AI5: -0.475 | AJ5: 0.66 | AK5: 0.56 | AL5: -1.309 | AM5: 0.115 | AN5: 0.224 | AO5: -0.251 | AP5: -0.614 | AQ5: 0 | AR5: -0.101 | AS5: 0.464 | AT5: 0.147 | AU5: 0.153 | AV5: -1.271 | AW5: 0.261 | AX5: 0.301 | AY5: -0.53 | AZ5: 0 | BA5: -0.147 | BB5: -0.117 | BC5: 1.622 | BD5: 0 | BE5: 0.64 | BF5: -1.92 | BG5: 0.257 | BH5: 0.074 | BI5: 0.177 | BJ5: -0.287 | BK5: -0.842 | BL5: 0.617 | BM5: 0 | BN5: -0.73 | BO5: -0.034 | BP5: 0.697 | BQ5: 4.101 | BR5: -1.594 | BS5: 1.367 | BT5: -0.455 | BU5: -1.441 | BV5: 1.377 | BW5: -0.385 | BX5: -0.686 | BY5: 1.818 | BZ5: -1.065 | CA5: -0.946 | CB5: 0.204 | CC5: -0.757 | CD5: -3.517 | CE5: 1.474 | CF5: -1.475 | CG5: 0.471 | CH5: 1.412 | CI5: -1.384 | CJ5: 0.402 | CK5: 0.751 | CL5: -1.896 | CM5: 1.053 | CN5: 0.972 | CO5: -0.206 | CP5: -0.733 | CQ5: 0 | CR5: -1.504 | CS5: 1.124 | CT5: -1.399 | CU5: -0.655 | CV5: 1.621 | CW5: -0.666 | CX5: -0.521 | CY5: 0.862 | CZ5: -0.456 | DA5: -0.898 | DB5: -0.269 | DC5: -0.267 | DD5: 0 | DE5: 0.849 | DF5: 0.261 | DG5: 0.707 | DH5: 0.114 | DI5: -0.511 | DJ5: 1.596 | DK5: 1.162 | DL5: -1.538 | DM5: 0.554 | DN5: 1.482 | DO5: 0.368 | DP5: -0.158 | DQ5: 3.469 | DR5: 0.907 | DS5: -1.711 | DT5: 0.664 | DU5: 0.719 | DV5: -1.707 | DW5: 0.653 | DX5: -0.685 | DY5: 1.983 | DZ5: 0.074 | EA5: -1.546 | EB5: 0.213 | EC5: 2.364 | ED5: -3.601 | EE5: 0 | EF5: 0.037 | EG5: 0 | EH5: -0.378 | EI5: 0.149 | EJ5: 0.11 | EK5: -1.378 | EL5: -0.435 | EM5: -0.113 | EN5: -0.889 | EO5: -0.312 | EP5: -0.634 | EQ5: 0 | ER5: -4.713 | ES5: 4.104 | ET5: -0.071 | EU5: -1.802 | EV5: 0.867 | EW5: -0.575 | EX5: 1.067 | EY5: 0.973 | EZ5: 0.179 | FA5: 0.998 | FB5: 0.013 | FC5: 0.294 | FD5: 0 | FE5: 2.882 | FF5: -2.448 | FG5: -0.721 | FH5: 0.587 | FI5: 0.93 | FJ5: -0.387 | FK5: 0.685 | FL5: -0.109 | FM5: -0.608 | FN5: 0.707 | FO5: 0.148 | FP5: -1.617 | FQ5: 2.88 | FR5: 1.645 | FS5: 0.156 | FT5: 0.579 | FU5: 1.418 | FV5: -0.177 | FW5: 0.895 | FX5: 0.525 | FY5: -2.032 | FZ5: 0.763 | GA5: -0.075 | GB5: 0.394 | GC5: -0.914 | GD5: -3.074 | GE5: -2.987 | GF5: 2.743 | GG5: -0.072 | GH5: 0.337 | GI5: -0.903 | GJ5: 0.035 | GK5: 0 | GL5: -0.281 | GM5: -0.183 | GN5: 0.802 | GO5: -0.357 | GP5: 2.029 | GQ5: 0 | GR5: 3.038 | GS5: -4.179 | GT5: 0.331 | GU5: 0 | GV5: -0.148 | GW5: -0.179 | GX5: -1.069 | GY5: 0.518 | GZ5: -0.717 | HA5: -0.809 | HB5: -0.095 | HC5: 0.691 | HD5: 0 | HE5: -0.531 | HF5: 0.081 | HG5: -0.107 | HH5: -0.502 | HI5: 0.481 | HJ5: 0.141 | HK5: -1.423 | HL5: 1.191 | HM5: 0.159 | HN5: -0.719 | HO5: -0.042 | HP5: -0.248 | HQ5: 3.941 | HR5: -4.135 | HS5: 4.097 | HT5: -0.81 | HU5: -0.54 | HV5: 0.769 | HW5: -0.921 | HX5: 0.806 | HY5: 0.88 | HZ5: 0.244 | IA5: 1.275 | IB5: 0.4 | IC5: -1.24 | ID5: -3.484 | IE5: 2.601 | IF5: -3.206 | IG5: -0.163 | IH5: 0.859 | II5: 0.233 | IJ5: -1.127 | IK5: 0.91 | IL5: -1.105 | IM5: 0.335 | IN5: -0.488 | IO5: -0.484 | IP5: -0.457759008 | IQ5: 0.143985684 | IR5: 0.5292122268 | IS5: 0.233453082 | IT5: 0.5071803754 | IU5: 0.2015634461 | IV5: -0.4207223465 | IW5: 0.5890922735 | IX5: -0.3207902913 | IY5: -1.19697794 | IZ5: 0.006657718386 | JA5: 0.6225154859 | JB5: 0.05471488212 | JC5: 0.3287573137 | JD5: -0.0628333797 | JE5: 0.7458929543 | JF5: -0.5785686431 | JG5: 0.2405959111 | JH5: -0.01149113348 | JI5: -1.127559849 | JJ5: 0.3428777156 | JK5: 0.5784339369 | JL5: 0.1267351171 | JM5: 0.05820800323 | JN5: 0.742665733 | JO5: 0.1256947105 | JP5: 1.568524578 | JQ5: 3.589208286 | JR5: -1.096444086 | JS5: -0.7156236015 | JT5: 0.2335024012 | JU5: -0.1784550267 | JV5: 0.2420935918 | JW5: -0.05754405879 | JX5: -1.676003498 | JY5: 0.1604442997 | JZ5: -0.8855166496 | KA5: -1.098361453 | KB5: -0.2727796717 | KC5: 0.4015952908 | KD5: -2.967646685 | KE5: -2.664949864 | KF5: 3.282941019 | KG5: 0.08908289805 | KH5: -1.254701445 | KI5: 1.914715036 | KJ5: 0.1153583392 | KK5: 0.986754803 | KL5: 2.211965629 | KM5: 0.7023281945 | KN5: -0.2299680683 | KO5: 0.1950551445 | KP5: -1.049612592 | KQ5: 0.04704890907 | KR5: 2.295106425 | KS5: -2.137355419 | KT5: -0.7928817094 | KU5: 0.2099810534 | KV5: 0.1766980937 | KW5: -0.6499533871 | KX5: 0.9769928908 | KY5: -0.1101087287 | KZ5: -0.2240397204 | LA5: 0.8343235875 | LB5: -0.01468303779 | LC5: -1.163237905 | LD5: 0.009700616537 | LE5: 0.1475110332 | LF5: 0.7201355526 | LG5: -0.2875964227 | LH5: 0.9814801277 | LI5: 0.05186411126 | LJ5: 0.2698599347 | LK5: -0.1138971371 | LL5: -1.13366647 | LM5: 0.2212259411 | LN5: -0.678716707 | LO5: -0.08930755047 | LP5: -0.004847984831 | LQ5: 3.72315612 | LR5: -1.495925339 | LS5: 2.193929342 | LT5: 0.8062027077 | LU5: 0.3129970049 | LV5: -1.258101894 | LW5: 1.724084727 | LX5: 0.3765083129 | LY5: -0.8442408372 | LZ5: 0.3870856399 | MA5: 1.739089943 | MB5: 0.6000151671 | MC5: 1.1876381 | MD5: -0.03441840558 | ME5: 2.682997922 | MF5: -3.605638273 | MG5: 0.5457506578 | MH5: 0.2475618 | MI5: -0.07091260996 | MJ5: -0.1404384514 | MK5: - | ML5: - | MM5: - | MN5: - | MO5: -0.2942831758 | MP5: - | MQ5: - | MR5: - | MS5: - | MT5: - | MU5: - | MV5: - | MW5: - | MX5: - | MY5: - | MZ5: - | NA5: - | NB5: - | NC5: - | ND5: - | NE5: - | NF5: - | NG5: - | NH5: - | NI5: - | NJ5: - | NK5: - | NL5: - | NM5: - | NN5: - | NO5: - | NP5: - | NQ5: - | NR5: - | NS5: - | NT5: - | NU5: - | NV5: - | NW5: - | NX5: - | NY5: - | NZ5: - | OA5: - | OB5: -
B6: Temperatura | C6: 2.884 | D6: 14.092 | E6: 1.852 | F6: 1.05 | G6: 1.764 | H6: -0.073 | I6: -0.525 | J6: 0.801 | K6: -0.156 | L6: 1.83 | M6: 0.495 | N6: -5.09 | O6: 1.465 | P6: 4.636 | Q6: -2.084 | R6: 0.925 | S6: -2.225 | T6: -1.228 | U6: -0.641 | V6: -1.079 | W6: -1.34 | X6: -1.07 | Y6: -0.104 | Z6: -3.972 | AA6: -1.243 | AB6: -0.731 | AC6: -3.476 | AD6: -0.045 | AE6: 2.054 | AF6: 0.239 | AG6: -0.789 | AH6: 2.193 | AI6: -0.289 | AJ6: 0.586 | AK6: -0.405 | AL6: 0.779 | AM6: 5.614 | AN6: 0.29 | AO6: 0.495 | AP6: -2.843 | AQ6: -2.322 | AR6: -5.662 | AS6: 0.144 | AT6: 0 | AU6: 1.316 | AV6: 2.982 | AW6: 0.87 | AX6: 0.419 | AY6: -4.117 | AZ6: -5.693 | BA6: -1.26 | BB6: -1.446 | BC6: -1.869 | BD6: -5.173 | BE6: 2.7 | BF6: -1.884 | BG6: 0 | BH6: -0.703 | BI6: -0.219 | BJ6: -0.926 | BK6: -0.567 | BL6: -0.01 | BM6: 0.585 | BN6: -0.701 | BO6: -0.736 | BP6: -2.964 | BQ6: 5.951 | BR6: 1.686 | BS6: -0.401 | BT6: 0.298 | BU6: 0.512 | BV6: -2.075 | BW6: -2.212 | BX6: -0.818 | BY6: 0.189 | BZ6: 2.588 | CA6: -0.132 | CB6: 0.181 | CC6: 3.38 | CD6: -8.149 | CE6: -6.673 | CF6: -1.535 | CG6: -0.295 | CH6: -1.332 | CI6: -1.464 | CJ6: 1.36 | CK6: 1.904 | CL6: 0.4 | CM6: -1.107 | CN6: -0.636 | CO6: -1.222 | CP6: -3.451 | CQ6: 1.233 | CR6: 1.793 | CS6: 2.771 | CT6: 0.24 | CU6: 0.259 | CV6: 2.293 | CW6: 0.422 | CX6: -0.188 | CY6: 0.011 | CZ6: -0.589 | DA6: 2.29 | DB6: 0.559 | DC6: 1.251 | DD6: 4.811 | DE6: 2.356 | DF6: -1.489 | DG6: -0.226 | DH6: 3.975 | DI6: 0.059 | DJ6: -0.065 | DK6: -0.351 | DL6: -0.469 | DM6: 3.002 | DN6: -2.985 | DO6: 0.786 | DP6: 3.483 | DQ6: -5.791 | DR6: -1.126 | DS6: 1.434 | DT6: 0 | DU6: 0.21 | DV6: -1.433 | DW6: -1.148 | DX6: -0.11 | DY6: 0.398 | DZ6: -2.551 | EA6: -2.244 | EB6: -0.758 | EC6: -6.698 | ED6: 3.577 | EE6: -1.786 | EF6: -0.613 | EG6: 2.034 | EH6: -0.183 | EI6: -0.494 | EJ6: 0.763 | EK6: -0.289 | EL6: -0.437 | EM6: 2.543 | EN6: 7.652 | EO6: 0.477 | EP6: 0.443 | EQ6: -0.836 | ER6: 2.338 | ES6: 0.315 | ET6: -1.045 | EU6: 0.196 | EV6: 0.426 | EW6: -1.692 | EX6: -0.138 | EY6: 0.262 | EZ6: -4.483 | FA6: -8.377 | FB6: -1.124 | FC6: 0.756 | FD6: 3.92 | FE6: -1.761 | FF6: -1.407 | FG6: -0.362 | FH6: 3.158 | FI6: 1.657 | FJ6: 3.887 | FK6: 0.509 | FL6: 0.849 | FM6: -0.598 | FN6: 3.215 | FO6: 1.146 | FP6: -2.01 | FQ6: -1.515 | FR6: 3.62 | FS6: 1.067 | FT6: 0.243 | FU6: -1.917 | FV6: -0.61 | FW6: -1.815 | FX6: 0.273 | FY6: -0.033 | FZ6: 1.32 | GA6: 0.195 | GB6: -0.129 | GC6: 6.111 | GD6: 7.62 | GE6: 0.804 | GF6: 0.018 | GG6: -0.213 | GH6: 1.459 | GI6: 1.172 | GJ6: 0.128 | GK6: -0.416 | GL6: -0.535 | GM6: 0.161 | GN6: 1.911 | GO6: 1.551 | GP6: -0.248 | GQ6: -3.039 | GR6: -1.688 | GS6: -0.62 | GT6: -0.125 | GU6: -1.561 | GV6: 0.969 | GW6: -0.254 | GX6: 0.419 | GY6: -0.014 | GZ6: -2.561 | HA6: -2.378 | HB6: -0.949 | HC6: -2.878 | HD6: -6.228 | HE6: -0.978 | HF6: -0.264 | HG6: -0.097 | HH6: -1.908 | HI6: -3.348 | HJ6: -0.323 | HK6: -0.87 | HL6: 0.136 | HM6: 2.008 | HN6: -0.151 | HO6: -1.295 | HP6: -1.76 | HQ6: -0.918 | HR6: 0.022 | HS6: -1.587 | HT6: -0.152 | HU6: 0.518 | HV6: -0.684 | HW6: 0.433 | HX6: -0.081 | HY6: 0.053 | HZ6: 1.821 | IA6: 1.545 | IB6: -0.058 | IC6: 2.714 | ID6: 3.086 | IE6: -0.904 | IF6: 1.511 | IG6: 0.111 | IH6: 0.894 | II6: 0.462 | IJ6: 0.287 | IK6: 0.046 | IL6: 0.493 | IM6: -3.065 | IN6: -0.585 | IO6: 0.441 | IP6: -0.8657913558 | IQ6: 2.42032466 | IR6: 3.509492984 | IS6: -0.8717322814 | IT6: 1.542936883 | IU6: -3.093136213 | IV6: 0.4214940512 | IW6: -1.216729591 | IX6: -0.4077135074 | IY6: -1.38481098 | IZ6: 4.247789386 | JA6: 0.732971179 | JB6: 0.3968313055 | JC6: -1.254340271 | JD6: -4.025328241 | JE6: -0.7963745501 | JF6: -1.754664537 | JG6: -0.8664201003 | JH6: 1.366111476 | JI6: -2.936349033 | JJ6: -0.02803587061 | JK6: 2.218280811 | JL6: 2.677304687 | JM6: -3.018356894 | JN6: -3.304807627 | JO6: -1.027934365 | JP6: -1.645067822 | JQ6: 4.612008683 | JR6: -2.969350854 | JS6: 2.36538027 | JT6: 1.556251895 | JU6: 2.100859154 | JV6: 1.2 | JW6: 1.548392565 | JX6: -1.285234646 | JY6: -1.691779371 | JZ6: 2.065173812 | KA6: 1.033245844 | KB6: 0.6896690035 | KC6: 1.050444998 | KD6: -1.788001005 | KE6: 3.976627159 | KF6: -0.232897748 | KG6: -1.589901449 | KH6: -4.217677698 | KI6: 1.395007627 | KJ6: -1.714005483 | KK6: -0.1500192425 | KL6: -0.1527573181 | KM6: 0.06547670158 | KN6: 0.3541403236 | KO6: -0.2720854883 | KP6: -0.6864985498 | KQ6: -0.764090417 | KR6: -3.47398633 | KS6: -1.873756879 | KT6: -1.407985668 | KU6: 1.889430798 | KV6: -2.61907765 | KW6: -1.381704129 | KX6: 0.6095628247 | KY6: 0.8994959335 | KZ6: -2.094080341 | LA6: -0.4813092057 | LB6: -0.984818408 | LC6: 0.4790135678 | LD6: 1.929529504 | LE6: 1.031603867 | LF6: -0.6707287801 | LG6: 2.585425132 | LH6: 2.52268872 | LI6: 5.579061211 | LJ6: 0.79574731 | LK6: -2.921214375 | LL6: -2.287813615 | LM6: -1.191085211 | LN6: -3.929784313 | LO6: 0.3584735471 | LP6: -1.824288544 | LQ6: -3.252581753 | LR6: 0.9253948357 | LS6: 1.129338479 | LT6: -1.352589661 | LU6: -0.7459457423 | LV6: -1.008452307 | LW6: 0.7760941532 | LX6: 2.167460549 | LY6: 0.395196729 | LZ6: 2.406304868 | MA6: 2.46081233 | MB6: 0.08915295985 | MC6: 1.128573927 | MD6: -5.850447757 | ME6: -2.715136958 | MF6: -0.7867779029 | MG6: 1.573606628 | MH6: 2.460862225 | MI6: -0.0005397650978 | MJ6: 0.1198208347 | MK6: - | ML6: - | MM6: - | MN6: - | MO6: -0.0199257276 | MP6: - | MQ6: - | MR6: - | MS6: - | MT6: - | MU6: - | MV6: - | MW6: - | MX6: - | MY6: - | MZ6: - | NA6: - | NB6: - | NC6: - | ND6: - | NE6: - | NF6: - | NG6: - | NH6: - | NI6: - | NJ6: - | NK6: - | NL6: - | NM6: - | NN6: - | NO6: - | NP6: - | NQ6: - | NR6: - | NS6: - | NT6: - | NU6: - | NV6: - | NW6: - | NX6: - | NY6: - | NZ6: - | OA6: - | OB6: -
B7: Demanda corregida | C7: 2.016 | D7: 0.204 | E7: 1.914 | F7: 0.725 | G7: 3.421 | H7: 1.116 | I7: 3.57 | J7: 0.992 | K7: 3.773 | L7: 4.443 | M7: 3.611 | N7: 3.204 | O7: 2.42 | P7: 0.243 | Q7: 2.149 | R7: 3.097 | S7: 5.516 | T7: 1.836 | U7: -1.231 | V7: 1.175 | W7: 5.283 | X7: 0.869 | Y7: -0.491 | Z7: -0.631 | AA7: -2.65 | AB7: 1.239 | AC7: 0.196 | AD7: -1.664 | AE7: -1.627 | AF7: -2.88 | AG7: -1.365 | AH7: 1.047 | AI7: -0.245 | AJ7: -0.424 | AK7: -1.367 | AL7: 2.111 | AM7: 0.995 | AN7: 4.149 | AO7: -0.127 | AP7: 3.795 | AQ7: 4.296 | AR7: 2.818 | AS7: 5.92 | AT7: 5.727 | AU7: 5.747 | AV7: 5.978 | AW7: 7.021 | AX7: 5.925 | AY7: 5.588 | AZ7: 5.173 | BA7: 4.357 | BB7: 5.128 | BC7: 6.657 | BD7: 4.595 | BE7: 6.592 | BF7: 5.762 | BG7: 5.814 | BH7: 4.693 | BI7: 2.336 | BJ7: 5.058 | BK7: 4.044 | BL7: 3.65 | BM7: 2.504 | BN7: 2.636 | BO7: 4.526 | BP7: 1.296 | BQ7: 1.839 | BR7: 1.728 | BS7: 0.456 | BT7: 0.853 | BU7: 3.647 | BV7: 3.951 | BW7: 3.784 | BX7: 2.081 | BY7: 2.194 | BZ7: 3.633 | CA7: 5.051 | CB7: 2.564 | CC7: 4.184 | CD7: 4.117 | CE7: 0.818 | CF7: 10.913 | CG7: 4.496 | CH7: 2.012 | CI7: 5.263 | CJ7: 4.299 | CK7: 8.187 | CL7: 8.262 | CM7: 5.085 | CN7: 7.517 | CO7: 5.368 | CP7: 6.763 | CQ7: 8.334 | CR7: 10.812 | CS7: 2.089 | CT7: 6.057 | CU7: 8.43 | CV7: 6.468 | CW7: 6.727 | CX7: 4.543 | CY7: 3.123 | CZ7: 6.588 | DA7: 5.906 | DB7: 6.294 | DC7: 5.583 | DD7: 4.431 | DE7: 3.88 | DF7: 3.552 | DG7: 6.248 | DH7: 2.698 | DI7: 6.846 | DJ7: 4.489 | DK7: 5.011 | DL7: 6.515 | DM7: 7.02 | DN7: 7.427 | DO7: 5.353 | DP7: 7.042 | DQ7: 7.133 | DR7: 6.588 | DS7: 8.608 | DT7: 5.67 | DU7: 5.927 | DV7: 5.059 | DW7: 7.256 | DX7: 7.53 | DY7: 4.392 | DZ7: 6.567 | EA7: 4.872 | EB7: 6.339 | EC7: 6.823 | ED7: 5.149 | EE7: 7.026 | EF7: 2.75 | EG7: 5.204 | EH7: 6.735 | EI7: 6.796 | EJ7: 6.247 | EK7: 4.742 | EL7: 5.686 | EM7: 2.805 | EN7: 3.388 | EO7: 5.284 | EP7: 5.943 | EQ7: 3.898 | ER7: 4.679 | ES7: 5.166 | ET7: 4.125 | EU7: 3.298 | EV7: 3.368 | EW7: 1.263 | EX7: 1.949 | EY7: 4.148 | EZ7: 4.558 | FA7: 5.456 | FB7: 4.003 | FC7: 3.387 | FD7: 6.515 | FE7: 3.873 | FF7: 3.787 | FG7: 4.362 | FH7: 5.1 | FI7: 6.025 | FJ7: 9.347 | FK7: 5.995 | FL7: 5.481 | FM7: 6.983 | FN7: 4.772 | FO7: 5.455 | FP7: 4.28 | FQ7: 2.414 | FR7: 5.913 | FS7: 6.15 | FT7: 3.47 | FU7: 2.995 | FV7: 3.758 | FW7: 2.386 | FX7: 5.319 | FY7: 4.24 | FZ7: 4.954 | GA7: 4.955 | GB7: 4.224 | GC7: 5.148 | GD7: 3.167 | GE7: 4.329 | GF7: 1.558 | GG7: 3.982 | GH7: 3.971 | GI7: 4.032 | GJ7: 2.807 | GK7: 1.443 | GL7: 1.325 | GM7: 2.248 | GN7: 3.765 | GO7: 3.131 | GP7: 2.734 | GQ7: 4.326 | GR7: 3.115 | GS7: 2.866 | GT7: 5.879 | GU7: 3.266 | GV7: 6.139 | GW7: 5.829 | GX7: 7.542 | GY7: 5.82 | GZ7: 2.905 | HA7: 4.912 | HB7: 4.617 | HC7: 5.22 | HD7: 5.904 | HE7: 4.23 | HF7: 8.635 | HG7: 2.616 | HH7: 3.511 | HI7: 2.059 | HJ7: 2.654 | HK7: 2.579 | HL7: 2.42 | HM7: 7.196 | HN7: 4.533 | HO7: 4.261 | HP7: 3.142 | HQ7: 3.413 | HR7: 2.989 | HS7: 3.588 | HT7: 1.381 | HU7: 0.025 | HV7: 1.613 | HW7: 3.411 | HX7: 0.149 | HY7: -1.357 | HZ7: -4.13 | IA7: -5.224 | IB7: 0.713 | IC7: -4.185 | ID7: -6.969 | IE7: -7.911 | IF7: -8.858 | IG7: -6.196 | IH7: -4.317 | II7: -4.203 | IJ7: -1.833 | IK7: -4.187 | IL7: -3.173 | IM7: -3.632 | IN7: -0.82 | IO7: -4.688 | IP7: 1.240599447 | IQ7: 2.345420471 | IR7: 4.993199951 | IS7: 4.314299007 | IT7: 1.925097763 | IU7: 2.396688833 | IV7: 3.212229133 | IW7: 2.08116657 | IX7: 2.205774092 | IY7: 3.436637818 | IZ7: 2.37041875 | JA7: 1.790143585 | JB7: 2.662201324 | JC7: 0.5758325393 | JD7: 1.824659257 | JE7: -0.2928061103 | JF7: -1.081789337 | JG7: 0.2507563575 | JH7: 0.1223021607 | JI7: -0.8970918254 | JJ7: 0.3040825994 | JK7: -1.256533221 | JL7: -3.58241281 | JM7: -3.387720701 | JN7: -4.107037645 | JO7: -0.9899042399 | JP7: -2.363228898 | JQ7: -1.043452104 | JR7: -2.134322647 | JS7: -0.489220943 | JT7: -2.55199793 | JU7: -1.865733131 | JV7: -2.923396571 | JW7: -2.14420148 | JX7: -2.874030274 | JY7: -1.527758624 | JZ7: -2.850806554 | KA7: -2.443273556 | KB7: -1.818774848 | KC7: -3.778714648 | KD7: -5.692527005 | KE7: -1.824458782 | KF7: -2.942380816 | KG7: -2.183463334 | KH7: -2.278049803 | KI7: -3.4637958 | KJ7: -2.317368342 | KK7: -1.280811324 | KL7: -1.736187506 | KM7: 0.2707967468 | KN7: 1.833754216 | KO7: -2.163244696 | KP7: -0.4794321743 | KQ7: -0.145824408 | KR7: -0.2269642249 | KS7: 0.2548892019 | KT7: 2.362561559 | KU7: 0.2846984715 | KV7: 0.06229748898 | KW7: -0.0732626597 | KX7: 1.233102481 | KY7: -1.264929941 | KZ7: -1.077029295 | LA7: -2.294604737 | LB7: -0.1469858495 | LC7: 3.588940864 | LD7: 1.207485988 | LE7: 0.08202456383 | LF7: 0.404718826 | LG7: -0.4806975309 | LH7: 0.4600143561 | LI7: 5.482192683 | LJ7: 2.43431283 | LK7: -0.274258557 | LL7: 3.631514302 | LM7: 1.447902756 | LN7: 2.610732133 | LO7: 1.736788672 | LP7: -3.566077566 | LQ7: -1.254370316 | LR7: 1.953665954 | LS7: 2.378341454 | LT7: 0.04190412757 | LU7: -0.2053636451 | LV7: -3.001742886 | LW7: 0.2181305717 | LX7: 3.748485699 | LY7: 0.935728527 | LZ7: 0.959941516 | MA7: -2.157241359 | MB7: -0.05247252564 | MC7: 5.374217395 | MD7: 1.463049595 | ME7: -1.637694464 | MF7: -1.126566747 | MG7: 1.147626432 | MH7: 4.099854119 | MI7: 0.9589382143 | MJ7: 1.611533639 | MK7: - | ML7: - | MM7: - | MN7: - | MO7: 1.409052691 | MP7: - | MQ7: - | MR7: - | MS7: - | MT7: - | MU7: - | MV7: - | MW7: - | MX7: - | MY7: - | MZ7: - | NA7: - | NB7: - | NC7: - | ND7: - | NE7: - | NF7: - | NG7: - | NH7: - | NI7: - | NJ7: - | NK7: - | NL7: - | NM7: - | NN7: - | NO7: - | NP7: - | NQ7: - | NR7: - | NS7: - | NT7: - | NU7: - | NV7: - | NW7: - | NX7: - | NY7: - | NZ7: - | OA7: - | OB7: -
B9: Componentes mensuales del crecimiento de la demanda Islas Baleares (%) | C9: 2011-01-01 | D9: 2011-02-01 | E9: 2011-03-01 | F9: 2011-04-01 | G9: 2011-05-01 | H9: 2011-06-01 | I9: 2011-07-01 | J9: 2011-08-01 | K9: 2011-09-01 | L9: 2011-10-01 | M9: 2011-11-01 | N9: 2011-12-01 | O9: 2011 | P9: 2012-01-01 | Q9: 2012-02-01 | R9: 2012-03-01 | S9: 2012-04-01 | T9: 2012-05-01 | U9: 2012-06-01 | V9: 2012-07-01 | W9: 2012-08-01 | X9: 2012-09-01 | Y9: 2012-10-01 | Z9: 2012-11-01 | AA9: 2012-12-01 | AB9: 2012 | AC9: 2013-01-01 | AD9: 2013-02-01 | AE9: 2013-03-01 | AF9: 2013-04-01 | AG9: 2013-05-01 | AH9: 2013-06-01 | AI9: 2013-07-01 | AJ9: 2013-08-01 | AK9: 2013-09-01 | AL9: 2013-10-01 | AM9: 2013-11-01 | AN9: 2013-12-01 | AO9: 2013 | AP9: 2014-01-01 | AQ9: 2014-02-01 | AR9: 2014-03-01 | AS9: 2014-04-01 | AT9: 2014-05-01 | AU9: 2014-06-01 | AV9: 2014-07-01 | AW9: 2014-08-01 | AX9: 2014-09-01 | AY9: 2014-10-01 | AZ9: 2014-11-01 | BA9: 2014-12-01 | BB9: 2014 | BC9: 2015-01-01 | BD9: 2015-02-01 | BE9: 2015-03-01 | BF9: 2015-04-01 | BG9: 2015-05-01 | BH9: 2015-06-01 | BI9: 2015-07-01 | BJ9: 2015-08-01 | BK9: 2015-09-01 | BL9: 2015-10-01 | BM9: 2015-11-01 | BN9: 2015-12-01 | BO9: 2015 | BP9: 2016-01-01 | BQ9: 2016-02-01 | BR9: 2016-03-01 | BS9: 2016-04-01 | BT9: 2016-05-01 | BU9: 2016-06-01 | BV9: 2016-07-01 | BW9: 2016-08-01 | BX9: 2016-09-01 | BY9: 2016-10-01 | BZ9: 2016-11-01 | CA9: 2016-12-01 | CB9: 2016 | CC9: 2017-01-01 | CD9: 2017-02-01 | CE9: 2017-03-01 | CF9: 2017-04-01 | CG9: 2017-05-01 | CH9: 2017-06-01 | CI9: 2017-07-01 | CJ9: 2017-08-01 | CK9: 2017-09-01 | CL9: 2017-10-01 | CM9: 2017-11-01 | CN9: 2017-12-01 | CO9: 2017 | CP9: 2018-01-01 | CQ9: 2018-02-01 | CR9: 2018-03-01 | CS9: 2018-04-01 | CT9: 2018-05-01 | CU9: 2018-06-01 | CV9: 2018-07-01 | CW9: 2018-08-01 | CX9: 2018-09-01 | CY9: 2018-10-01 | CZ9: 2018-11-01 | DA9: 2018-12-01 | DB9: 2018 | DC9: 2019-01-01 | DD9: 2019-02-01 | DE9: 2019-03-01 | DF9: 2019-04-01 | DG9: 2019-05-01 | DH9: 2019-06-01 | DI9: 2019-07-01 | DJ9: 2019-08-01 | DK9: 2019-09-01 | DL9: 2019-10-01 | DM9: 2019-11-01 | DN9: 2019-12-01 | DO9: 2019 | DP9: 2020-01-01 | DQ9: 2020-02-01 | DR9: 2020-03-01 | DS9: 2020-04-01 | DT9: 2020-05-01 | DU9: 2020-06-01 | DV9: 2020-07-01 | DW9: 2020-08-01 | DX9: 2020-09-01 | DY9: 2020-10-01 | DZ9: 2020-11-01 | EA9: 2020-12-01 | EB9: 2020
B10: Variación mensual | C10: -2.707245371 | D10: -5.441823036 | E10: -3.861565274 | F10: -4.738611532 | G10: 4.276754521 | H10: 5.944159321 | I10: -5.247215801 | J10: 2.347099008 | K10: 6.694371346 | L10: 0.9652565859 | M10: -7.966068182 | N10: -11.95688179 | O10: -1.660652455 | P10: -3.819311131 | Q10: 17.31446065 | R10: -4.221288537 | S10: 1.868281416 | T10: -2.059605491 | U10: 5.970340585 | V10: 2.347455047 | W10: 5.470019538 | X10: -7.481606834 | Y10: 0.2124377039 | Z10: -0.09817797658 | AA10: 1.458463098 | AB10: 1.380811744 | AC10: -2.874608901 | AD10: -16.06647096 | AE10: -2.341202518 | AF10: -0.8740108693 | AG10: -0.8120259967 | AH10: -10.00496806 | AI10: 1.561831944 | AJ10: -6.309336901 | AK10: -0.07584632958 | AL10: 2.643514094 | AM10: 6.271839973 | AN10: 3.373876184 | AO10: -2.560166878 | AP10: -4.567608301 | AQ10: -9.182557016 | AR10: -2.524647673 | AS10: -2.035765016 | AT10: -1.027568008 | AU10: 5.841444562 | AV10: -3.369140888 | AW10: -0.6002503318 | AX10: 11.25326621 | AY10: -1.55363744 | AZ10: -9.901877827 | BA10: -4.653966785 | BB10: -1.553096896 | BC10: 5.879135132 | BD10: 12.39253965 | BE10: 5.741179947 | BF10: 1.957932489 | BG10: 2.924710039 | BH10: 2.90091385 | BI10: 15.91260442 | BJ10: 4.51865386 | BK10: -8.071135128 | BL10: -1.370674299 | BM10: 4.527140419 | BN10: -2.006836203 | BO10: 3.777874219 | BP10: -8.726499547 | BQ10: -6.567913152 | BR10: 2.440472475 | BS10: 4.258092284 | BT10: 4.855000324 | BU10: 2.119983804 | BV10: -7.517308507 | BW10: -0.7935625145 | BX10: 8.655995492 | BY10: 6.630791764 | BZ10: 3.918006308 | CA10: 2.650127876 | CB10: 0.6166345801 | CC10: 16.05221768 | CD10: -1.950664457 | CE10: -8.685128845 | CF10: 0.2966267453 | CG10: 2.458295107 | CH10: 8.392340656 | CI10: 5.921182118 | CJ10: 9.089539744 | CK10: - | CL10: - | CM10: - | CN10: - | CO10: 4.376081716 | CP10: - | CQ10: - | CR10: - | CS10: - | CT10: - | CU10: - | CV10: - | CW10: - | CX10: - | CY10: - | CZ10: - | DA10: - | DB10: - | DC10: - | DD10: - | DE10: - | DF10: - | DG10: - | DH10: - | DI10: - | DJ10: - | DK10: - | DL10: - | DM10: - | DN10: - | DO10: - | DP10: - | DQ10: - | DR10: - | DS10: - | DT10: - | DU10: - | DV10: - | DW10: - | DX10: - | DY10: - | DZ10: - | EA10: - | EB10: -
B12: Laboralidad | C12: -0.08942810712 | D12: 0.03339497792 | E12: 0.1522979108 | F12: -0.2630072475 | G12: -0.060319331 | H12: 0.01655906723 | I12: -0.4838187959 | J12: -0.05278883943 | K12: -0.02285749686 | L12: 0.05532291253 | M12: 0.1046293902 | N12: -0.04495646056 | O12: -0.05360259252 | P12: 0.2677723451 | Q12: 0.0417585276 | R12: -0.2372457431 | S12: -0.2579417926 | T12: 0.5243906591 | U12: -0.2473426798 | V12: 0.1674429964 | W12: 0.0535294137 | X12: -0.6093326023 | Y12: -0.01768748169 | Z12: 0.5582449222 | AA12: -0.5177845861 | AB12: -0.02670709284 | AC12: 0.5299042632 | AD12: -2.87764687 | AE12: -1.158761222 | AF12: 0.9940932787 | AG12: -0.05027391301 | AH12: -0.5040581884 | AI12: 0.4401756575 | AJ12: -0.1630466953 | AK12: 0.1494862917 | AL12: 1.179652552 | AM12: -0.7436927109 | AN12: 0.6398446332 | AO12: -0.1356038236 | AP12: -0.5805363429 | AQ12: 0.06114660589 | AR12: 0.7740948737 | AS12: -0.2727635761 | AT12: 0.5305251929 | AU12: 0.5326059873 | AV12: 0.2781060753 | AW12: -0.03843344845 | AX12: 0.7364525742 | AY12: 0.2929548112 | AZ12: 0.068005463 | BA12: 0.3489812535 | BB12: 0.2352407747 | BC12: -0.09155495375 | BD12: 0.6229643055 | BE12: 0.6359372121 | BF12: -0.03304631178 | BG12: -0.4254323462 | BH12: 0.5654983845 | BI12: 0.1686558395 | BJ12: 0.2333196291 | BK12: 0.1508312803 | BL12: -0.5839066475 | BM12: 0.290131659 | BN12: 0.6133579223 | BO12: 0.1727220386 | BP12: 0.4598889553 | BQ12: 3.048246346 | BR12: -0.3079325272 | BS12: 0.6809867392 | BT12: 0.4977221397 | BU12: 0.05139184885 | BV12: -0.6442106054 | BW12: 0.2313669005 | BX12: -0.05050207657 | BY12: -0.5216945887 | BZ12: -0.01174665895 | CA12: -0.4375092755 | CB12: 0.210992142 | CC12: -0.6385345442 | CD12: -4.321312703 | CE12: -0.04342338988 | CF12: -1.595648646 | CG12: -0.6599779755 | CH12: -0.4186281323 | CI12: -0.4064150275 | CJ12: -0.2141737757 | CK12: - | CL12: - | CM12: - | CN12: - | CO12: -0.1806211618 | CP12: - | CQ12: - | CR12: - | CS12: - | CT12: - | CU12: - | CV12: - | CW12: - | CX12: - | CY12: - | CZ12: - | DA12: - | DB12: - | DC12: - | DD12: - | DE12: - | DF12: - | DG12: - | DH12: - | DI12: - | DJ12: - | DK12: - | DL12: - | DM12: - | DN12: - | DO12: - | DP12: - | DQ12: - | DR12: - | DS12: - | DT12: - | DU12: - | DV12: - | DW12: - | DX12: - | DY12: - | DZ12: - | EA12: - | EB12: -
B13: Temperatura | C13: 0.4017051898 | D13: -3.301558181 | E13: -2.134245739 | F13: -4.839674117 | G13: -0.06806880774 | H13: 1.198670675 | I13: -2.461688814 | J13: 0.3767897308 | K13: 2.725017345 | L13: 0.9540891323 | M13: -4.669486015 | N13: -5.826259668 | O13: -1.468024458 | P13: -4.160627816 | Q13: 10.71631903 | R13: -2.414852109 | S13: 4.758695316 | T13: -0.3419536785 | U13: 3.038541139 | V13: 3.346624279 | W13: 3.216878922 | X13: -2.12155407 | Y13: -0.8297332192 | Z13: 1.339484714 | AA13: 1.901739073 | AB13: 1.534335067 | AC13: 0.136689114 | AD13: -6.176222453 | AE13: -0.1238282182 | AF13: -1.7623101 | AG13: 0.2915466279 | AH13: -4.147738265 | AI13: -1.328995126 | AJ13: -2.371791473 | AK13: 0.3448554491 | AL13: 1.816697115 | AM13: 5.294073819 | AN13: 3.234025229 | AO13: -1.016716942 | AP13: 0.2244691558 | AQ13: -4.585356602 | AR13: 0.07347937363 | AS13: -1.406051332 | AT13: -1.157408917 | AU13: 5.366635445 | AV13: 1.328617496 | AW13: 2.047210461 | AX13: 4.537496132 | AY13: 1.372353946 | AZ13: -6.075901029 | BA13: -2.086146321 | BB13: 0.1922373557 | BC13: 1.564916461 | BD13: 6.654195179 | BE13: 2.164609664 | BF13: -0.3705802518 | BG13: 3.219393111 | BH13: 1.63117524 | BI13: 6.132948053 | BJ13: 1.575544705 | BK13: -1.819091435 | BL13: -3.137591551 | BM13: 1.176524393 | BN13: -9.262367759 | BO13: 0.9300797226 | BP13: -7.408776804 | BQ13: -9.843656605 | BR13: -1.611544421 | BS13: 0.404646891 | BT13: -3.141232961 | BU13: -1.593071185 | BV13: -2.542043016 | BW13: -1.193625684 | BX13: 1.77556901 | BY13: 2.088439258 | BZ13: 0.6406145267 | CA13: 4.473297574 | CB13: -1.657082883 | CC13: 9.378752829 | CD13: -0.3206981295 | CE13: -4.139615207 | CF13: -0.8750111745 | CG13: 2.414113485 | CH13: 3.027294027 | CI13: 0.5090401413 | CJ13: 4.336238199 | CK13: - | CL13: - | CM13: - | CN13: - | CO13: 1.923392673 | CP13: - | CQ13: - | CR13: - | CS13: - | CT13: - | CU13: - | CV13: - | CW13: - | CX13: - | CY13: - | CZ13: - | DA13: - | DB13: - | DC13: - | DD13: - | DE13: - | DF13: - | DG13: - | DH13: - | DI13: - | DJ13: - | DK13: - | DL13: - | DM13: - | DN13: - | DO13: - | DP13: - | DQ13: - | DR13: - | DS13: - | DT13: - | DU13: - | DV13: - | DW13: - | DX13: - | DY13: - | DZ13: - | EA13: - | EB13: -
B14: Demanda corregida | C14: -3.019522454 | D14: -2.173659833 | E14: -1.879617445 | F14: 0.3640698326 | G14: 4.405142659 | H14: 4.728929579 | I14: -2.301708191 | J14: 2.023098117 | K14: 3.992211498 | L14: -0.04415545893 | M14: -3.401211557 | N14: -6.085665661 | O14: -0.1390254046 | P14: 0.0735443396 | Q14: 6.556383088 | R14: -1.569190685 | S14: -2.632472107 | T14: -2.242042472 | U14: 3.179142125 | V14: -1.166612228 | W14: 2.199611202 | X14: -4.750720162 | Y14: 1.059858405 | Z14: -1.995907613 | AA14: 0.07450861169 | AB14: -0.1268162301 | AC14: -3.541202278 | AD14: -7.012601632 | AE14: -1.058613077 | AF14: -0.1057940483 | AG14: -1.053298712 | AH14: -5.353171607 | AI14: 2.450651413 | AJ14: -3.774498732 | AK14: -0.5701880703 | AL14: -0.352835573 | AM14: 1.721458864 | AN14: -0.4999936789 | AO14: -1.407846113 | AP14: -4.211541114 | AQ14: -4.65834702 | AR14: -3.37222192 | AS14: -0.3569501079 | AT14: -0.4006842841 | AU14: -0.05779687011 | AV14: -4.97586446 | AW14: -2.609027344 | AX14: 5.979317508 | AY14: -3.218946197 | AZ14: -3.89398226 | BA14: -2.916801717 | BB14: -1.980575027 | BC14: 4.405773625 | BD14: 5.115380166 | BE14: 2.94063307 | BF14: 2.361559052 | BG14: 0.1307492739 | BH14: 0.7042402256 | BI14: 9.61100053 | BJ14: 2.709789526 | BK14: -6.402874974 | BL14: 2.350823899 | BM14: 3.060484367 | BN14: 6.642173634 | BO14: 2.6750872 | BP14: -1.777611698 | BQ14: 0.2274971077 | BR14: 4.359949423 | BS14: 3.172458654 | BT14: 7.498511145 | BU14: 3.661663139 | BV14: -4.331054886 | BW14: 0.1686962692 | BX14: 6.930928559 | BY14: 5.064047095 | BZ14: 3.28913844 | CA14: -1.385660423 | CB14: 2.062725321 | CC14: 7.3119994 | CD14: 2.691346375 | CE14: -4.502090248 | CF14: 2.767286566 | CG14: 0.7041595983 | CH14: 5.783674761 | CI14: 5.818557004 | CJ14: 4.967475321 | CK14: - | CL14: - | CM14: - | CN14: - | CO14: 2.633310205 | CP14: - | CQ14: - | CR14: - | CS14: - | CT14: - | CU14: - | CV14: - | CW14: - | CX14: - | CY14: - | CZ14: - | DA14: - | DB14: - | DC14: - | DD14: - | DE14: - | DF14: - | DG14: - | DH14: - | DI14: - | DJ14: - | DK14: - | DL14: - | DM14: - | DN14: - | DO14: - | DP14: - | DQ14: - | DR14: - | DS14: - | DT14: - | DU14: - | DV14: - | DW14: - | DX14: - | DY14: - | DZ14: - | EA14: - | EB14: -
B16: Componentes mensuales del crecimiento de la demanda Islas Canarias (%) | C16: 2011-01-01 | D16: 2011-02-01 | E16: 2011-03-01 | F16: 2011-04-01 | G16: 2011-05-01 | H16: 2011-06-01 | I16: 2011-07-01 | J16: 2011-08-01 | K16: 2011-09-01 | L16: 2011-10-01 | M16: 2011-11-01 | N16: 2011-12-01 | O16: 2011 | P16: 2012-01-01 | Q16: 2012-02-01 | R16: 2012-03-01 | S16: 2012-04-01 | T16: 2012-05-01 | U16: 2012-06-01 | V16: 2012-07-01 | W16: 2012-08-01 | X16: 2012-09-01 | Y16: 2012-10-01 | Z16: 2012-11-01 | AA16: 2012-12-01 | AB16: 2012 | AC16: 2013-01-01 | AD16: 2013-02-01 | AE16: 2013-03-01 | AF16: 2013-04-01 | AG16: 2013-05-01 | AH16: 2013-06-01 | AI16: 2013-07-01 | AJ16: 2013-08-01 | AK16: 2013-09-01 | AL16: 2013-10-01 | AM16: 2013-11-01 | AN16: 2013-12-01 | AO16: 2013 | AP16: 2014-01-01 | AQ16: 2014-02-01 | AR16: 2014-03-01 | AS16: 2014-04-01 | AT16: 2014-05-01 | AU16: 2014-06-01 | AV16: 2014-07-01 | AW16: 2014-08-01 | AX16: 2014-09-01 | AY16: 2014-10-01 | AZ16: 2014-11-01 | BA16: 2014-12-01 | BB16: 2014 | BC16: 2015-01-01 | BD16: 2015-02-01 | BE16: 2015-03-01 | BF16: 2015-04-01 | BG16: 2015-05-01 | BH16: 2015-06-01 | BI16: 2015-07-01 | BJ16: 2015-08-01 | BK16: 2015-09-01 | BL16: 2015-10-01 | BM16: 2015-11-01 | BN16: 2015-12-01 | BO16: 2015 | BP16: 2016-01-01 | BQ16: 2016-02-01 | BR16: 2016-03-01 | BS16: 2016-04-01 | BT16: 2016-05-01 | BU16: 2016-06-01 | BV16: 2016-07-01 | BW16: 2016-08-01 | BX16: 2016-09-01 | BY16: 2016-10-01 | BZ16: 2016-11-01 | CA16: 2016-12-01 | CB16: 2016 | CC16: 2017-01-01 | CD16: 2017-02-01 | CE16: 2017-03-01 | CF16: 2017-04-01 | CG16: 2017-05-01 | CH16: 2017-06-01 | CI16: 2017-07-01 | CJ16: 2017-08-01 | CK16: 2017-09-01 | CL16: 2017-10-01 | CM16: 2017-11-01 | CN16: 2017-12-01 | CO16: 2017 | CP16: 2018-01-01 | CQ16: 2018-02-01 | CR16: 2018-03-01 | CS16: 2018-04-01 | CT16: 2018-05-01 | CU16: 2018-06-01 | CV16: 2018-07-01 | CW16: 2018-08-01 | CX16: 2018-09-01 | CY16: 2018-10-01 | CZ16: 2018-11-01 | DA16: 2018-12-01 | DB16: 2018 | DC16: 2019-01-01 | DD16: 2019-02-01 | DE16: 2019-03-01 | DF16: 2019-04-01 | DG16: 2019-05-01 | DH16: 2019-06-01 | DI16: 2019-07-01 | DJ16: 2019-08-01 | DK16: 2019-09-01 | DL16: 2019-10-01 | DM16: 2019-11-01 | DN16: 2019-12-01 | DO16: 2019 | DP16: 2020-01-01 | DQ16: 2020-02-01 | DR16: 2020-03-01 | DS16: 2020-04-01 | DT16: 2020-05-01 | DU16: 2020-06-01 | DV16: 2020-07-01 | DW16: 2020-08-01 | DX16: 2020-09-01 | DY16: 2020-10-01 | DZ16: 2020-11-01 | EA16: 2020-12-01 | EB16: 2020
B17: Variación mensual | C17: -1.081647232 | D17: -0.3758780626 | E17: -1.749738224 | F17: -1.843906601 | G17: -0.5434101733 | H17: 0.8429808814 | I17: 0.9710192154 | J17: -0.7628607233 | K17: -0.7348050477 | L17: 1.676425634 | M17: -0.3560572211 | N17: 0.5647243119 | O17: -0.2756998647 | P17: 1.799772834 | Q17: 5.969502529 | R17: 0.8407896387 | S17: -1.02030623 | T17: 0.7519193237 | U17: -0.0361328884 | V17: 0.7810571971 | W17: 2.550830437 | X17: 0.1002752225 | Y17: -2.039186024 | Z17: -2.283449636 | AA17: -3.836068646 | AB17: 0.2514750954 | AC17: -3.526398052 | AD17: -6.779059359 | AE17: -4.026916707 | AF17: 1.049089192 | AG17: -2.395064088 | AH17: -5.628342248 | AI17: -2.534140305 | AJ17: -3.242072215 | AK17: -5.166885448 | AL17: -2.034132843 | AM17: -1.144698377 | AN17: -0.6330578103 | AO17: -3.023379541 | AP17: -1.094603027 | AQ17: -0.4027499847 | AR17: -0.7030880575 | AS17: -2.949266708 | AT17: -1.03893997 | AU17: 0.5314672787 | AV17: -2.273374247 | AW17: -2.885728785 | AX17: 3.544884088 | AY17: 1.859250763 | AZ17: -0.4463351084 | BA17: -0.1203638261 | BB17: -0.5068397889 | BC17: 1.009761139 | BD17: 0.4915513442 | BE17: 0.9439997152 | BF17: -0.2942487068 | BG17: 0.8302340088 | BH17: -0.500443653 | BI17: 4.768602022 | BJ17: 2.583600669 | BK17: 0.02223167742 | BL17: -0.4439462406 | BM17: 1.130822013 | BN17: 1.76068121 | BO17: 1.041798557 | BP17: -0.4730191877 | BQ17: 2.936600349 | BR17: 0.8921357284 | BS17: 2.539040221 | BT17: -0.2702223843 | BU17: 3.406116806 | BV17: -0.3986828834 | BW17: 3.389968518 | BX17: 0.2219875992 | BY17: 0.6005247262 | BZ17: 1.024154463 | CA17: 1.452231413 | CB17: 1.247662994 | CC17: 2.800757528 | CD17: -2.181846584 | CE17: 2.399256793 | CF17: 2.226707106 | CG17: 4.214213427 | CH17: 3.27282872 | CI17: 1.314627179 | CJ17: 2.320737022 | CK17: - | CL17: - | CM17: - | CN17: - | CO17: 2.063275913 | CP17: - | CQ17: - | CR17: - | CS17: - | CT17: - | CU17: - | CV17: - | CW17: - | CX17: - | CY17: - | CZ17: - | DA17: - | DB17: - | DC17: - | DD17: - | DE17: - | DF17: - | DG17: - | DH17: - | DI17: - | DJ17: - | DK17: - | DL17: - | DM17: - | DN17: - | DO17: - | DP17: - | DQ17: - | DR17: - | DS17: - | DT17: - | DU17: - | DV17: - | DW17: - | DX17: - | DY17: - | DZ17: - | EA17: - | EB17: -
B19: Laboralidad | C19: -0.1118391394 | D19: 0.5119050725 | E19: -0.4036564845 | F19: -0.243374014 | G19: 0.3717942918 | H19: 0.0416308868 | I19: -0.5482018553 | J19: 0.009239058786 | K19: -0.009860146854 | L19: -0.02705205878 | M19: 0.09734412223 | N19: 0.2636737673 | O19: -0.009531395872 | P19: 0.6211856226 | Q19: -0.4241368464 | R19: 0.2114296869 | S19: -0.3473193127 | T19: 0.1322254455 | U19: -0.243223844 | V19: 0.2218231268 | W19: 0.04967853933 | X19: -0.7831049511 | Y19: 0.3298762208 | Z19: 0.4041502962 | AA19: -0.7629060109 | AB19: -0.04154167058 | AC19: 0.2400920332 | AD19: -0.09363227278 | AE19: -1.411831083 | AF19: 1.53771588 | AG19: -0.07748207022 | AH19: -0.6478715368 | AI19: 0.5236577479 | AJ19: -0.3321223819 | AK19: 0.2067470887 | AL19: 0.8561353853 | AM19: -0.602881123 | AN19: -0.06716149783 | AO19: -0.2695515154 | AP19: -0.4130035081 | AQ19: 0.4244397698 | AR19: 0.4513992042 | AS19: -0.9301399939 | AT19: -0.2512036337 | AU19: 0.2930583312 | AV19: -0.3453239939 | AW19: -0.3090631796 | AX19: 0.3356240204 | AY19: 0.07853185228 | AZ19: -0.2841272625 | BA19: 0.8075829586 | BB19: -0.0159449817 | BC19: 0.09468051003 | BD19: 0.02135976212 | BE19: 0.6576777427 | BF19: 0.5793696415 | BG19: -0.1177586007 | BH19: 0.5439016833 | BI19: 0.3965624967 | BJ19: 0.2241541727 | BK19: 0.2593314671 | BL19: -0.7711092291 | BM19: 0.3424447266 | BN19: -0.02735375362 | BO19: 0.1779619065 | BP19: -0.4469083146 | BQ19: 3.602396196 | BR19: 0.4463662078 | BS19: 0.1466434067 | BT19: 0.3205663004 | BU19: 0.07061519613 | BV19: -0.7715712879 | BW19: 0.3735647949 | BX19: -0.03955447574 | BY19: -0.5512005716 | BZ19: 0.1305363244 | CA19: 0.0615255787 | CB19: 0.2549061614 | CC19: 0.5306875012 | CD19: -4.018857909 | CE19: -0.04997851595 | CF19: -1.620651605 | CG19: 0.05641277176 | CH19: -0.03684913604 | CI19: -0.04062596819 | CJ19: -0.0647612686 | CK19: - | CL19: - | CM19: - | CN19: - | CO19: 0.2077618615 | CP19: - | CQ19: - | CR19: - | CS19: - | CT19: - | CU19: - | CV19: - | CW19: - | CX19: - | CY19: - | CZ19: - | DA19: - | DB19: - | DC19: - | DD19: - | DE19: - | DF19: - | DG19: - | DH19: - | DI19: - | DJ19: - | DK19: - | DL19: - | DM19: - | DN19: - | DO19: - | DP19: - | DQ19: - | DR19: - | DS19: - | DT19: - | DU19: - | DV19: - | DW19: - | DX19: - | DY19: - | DZ19: - | EA19: - | EB19: -
B20: Temperatura | C20: -0.1593199909 | D20: -0.3418643786 | E20: -0.3971766602 | F20: -0.6318401979 | G20: -0.2212241298 | H20: 0.6320568472 | I20: -0.406591204 | J20: -0.7003007533 | K20: -0.175374203 | L20: 0.1673734551 | M20: -0.5473479003 | N20: -0.6818188293 | O20: -0.2863990663 | P20: -0.07554821494 | Q20: 3.71659619 | R20: 0.06990299094 | S20: -0.1885719239 | T20: 0.6917938742 | U20: 0.1345057063 | V20: 0.7897529457 | W20: 0.5490354468 | X20: -0.01224387862 | Y20: -0.09861006421 | Z20: 0.4342422824 | AA20: 0.2044259117 | AB20: 0.2210717184 | AC20: 0.006903702842 | AD20: -3.412459424 | AE20: 0.01840930442 | AF20: 0.8146282103 | AG20: -0.9371688955 | AH20: -1.348158177 | AI20: -0.4179976577 | AJ20: 0.4375506284 | AK20: -0.3218513786 | AL20: -0.545717814 | AM20: -0.3003789616 | AN20: -0.1696268271 | AO20: -0.516236401 | AP20: 0.3124266377 | AQ20: 0.2778396184 | AR20: 0.04596285027 | AS20: -0.60461235 | AT20: -0.3942290072 | AU20: -1.001868391 | AV20: -2.831993196 | AW20: -3.957672193 | AX20: -2.648973829 | AY20: -1.717538093 | AZ20: -0.6219735823 | BA20: 0.0874081891 | BB20: -1.108967145 | BC20: -0.1087144444 | BD20: 0.02127476511 | BE20: 0.02127706755 | BF20: -0.1580775249 | BG20: 0.02901545858 | BH20: -0.003055736981 | BI20: 0.325894433 | BJ20: 0.07513089542 | BK20: 0.01447467279 | BL20: 0.02756848074 | BM20: -0.0001499935718 | BN20: -0.1644938225 | BO20: 0.007922619716 | BP20: -0.2306445011 | BQ20: -0.2348104006 | BR20: -0.03864867253 | BS20: -0.0172487337 | BT20: -0.075422035 | BU20: 0.03120491003 | BV20: -0.0402218276 | BW20: 0.05993822973 | BX20: -0.04454529173 | BY20: -0.06203558163 | BZ20: 0.0149672158 | CA20: 0.1474513325 | CB20: -0.0394265983 | CC20: 0.1636437181 | CD20: -0.01900012165 | CE20: 0.03495235035 | CF20: 0.06729657315 | CG20: 0.008257711976 | CH20: 0.08298292369 | CI20: -0.1768461872 | CJ20: 0.04598958161 | CK20: - | CL20: - | CM20: - | CN20: - | CO20: 0.02403568354 | CP20: - | CQ20: - | CR20: - | CS20: - | CT20: - | CU20: - | CV20: - | CW20: - | CX20: - | CY20: - | CZ20: - | DA20: - | DB20: - | DC20: - | DD20: - | DE20: - | DF20: - | DG20: - | DH20: - | DI20: - | DJ20: - | DK20: - | DL20: - | DM20: - | DN20: - | DO20: - | DP20: - | DQ20: - | DR20: - | DS20: - | DT20: - | DU20: - | DV20: - | DW20: - | DX20: - | DY20: - | DZ20: - | EA20: - | EB20: -
B21: Demanda corregida | C21: -0.8104881019 | D21: -0.5459187565 | E21: -0.9489050788 | F21: -0.9686923892 | G21: -0.6939803353 | H21: 0.1692931474 | I21: 1.925812275 | J21: -0.07179902877 | K21: -0.5495706979 | L21: 1.536104237 | M21: 0.09394655692 | N21: 0.9828693739 | O21: 0.02023059749 | P21: 1.254135426 | Q21: 2.677043185 | R21: 0.5594569608 | S21: -0.4844149939 | T21: -0.07209999603 | U21: 0.07258524928 | V21: -0.2305188754 | W21: 1.952116451 | X21: 0.8956240522 | Y21: -2.27045218 | Z21: -3.121842215 | AA21: -3.277588547 | AB21: 0.07194504761 | AC21: -3.773393788 | AD21: -3.272967663 | AE21: -2.633494928 | AF21: -1.303254898 | AG21: -1.380413123 | AH21: -3.632312535 | AI21: -2.639800395 | AJ21: -3.347500462 | AK21: -5.051781158 | AL21: -2.344550414 | AM21: -0.2414382925 | AN21: -0.3962694853 | AO21: -1.96114536 | AP21: -0.9940261564 | AQ21: -1.105029373 | AR21: -1.200450112 | AS21: -1.414514364 | AT21: -0.3935073289 | AU21: 1.240277339 | AV21: 0.9039429421 | AW21: 1.381006588 | AX21: 5.858233897 | AY21: 3.498257004 | AZ21: 0.4597657364 | BA21: -1.015354974 | BB21: 0.6180723378 | BC21: 1.023795074 | BD21: 0.448916817 | BE21: 0.265044905 | BF21: -0.7155408234 | BG21: 0.9189771509 | BH21: -1.041289599 | BI21: 4.046145092 | BJ21: 2.284315601 | BK21: -0.2515744625 | BL21: 0.2995945078 | BM21: 0.7885272801 | BN21: 1.952528786 | BO21: 0.8559149762 | BP21: 0.204533628 | BQ21: -0.4309854463 | BR21: 0.4844181931 | BS21: 2.409645548 | BT21: -0.5153666496 | BU21: 3.3042967 | BV21: 0.4131102321 | BW21: 2.956465493 | BX21: 0.3060873667 | BY21: 1.213760879 | BZ21: 0.8786509227 | CA21: 1.243254502 | CB21: 1.032183431 | CC21: 2.106426309 | CD21: 1.856011447 | CE21: 2.414282959 | CF21: 3.780062138 | CG21: 4.149542943 | CH21: 3.226694932 | CI21: 1.532099334 | CJ21: 2.339508709 | CK21: - | CL21: - | CM21: - | CN21: - | CO21: 1.831478368 | CP21: - | CQ21: - | CR21: - | CS21: - | CT21: - | CU21: - | CV21: - | CW21: - | CX21: - | CY21: - | CZ21: - | DA21: - | DB21: - | DC21: - | DD21: - | DE21: - | DF21: - | DG21: - | DH21: - | DI21: - | DJ21: - | DK21: - | DL21: - | DM21: - | DN21: - | DO21: - | DP21: - | DQ21: - | DR21: - | DS21: - | DT21: - | DU21: - | DV21: - | DW21: - | DX21: - | DY21: - | DZ21: - | EA21: - | EB21: -
B23: Componentes mensuales del crecimiento de la demanda nacional (%) | C23: 2011-01-01 | D23: 2011-02-01 | E23: 2011-03-01 | F23: 2011-04-01 | G23: 2011-05-01 | H23: 2011-06-01 | I23: 2011-07-01 | J23: 2011-08-01 | K23: 2011-09-01 | L23: 2011-10-01 | M23: 2011-11-01 | N23: 2011-12-01 | O23: 2011 | P23: 2012-01-01 | Q23: 2012-02-01 | R23: 2012-03-01 | S23: 2012-04-01 | T23: 2012-05-01 | U23: 2012-06-01 | V23: 2012-07-01 | W23: 2012-08-01 | X23: 2012-09-01 | Y23: 2012-10-01 | Z23: 2012-11-01 | AA23: 2012-12-01 | AB23: 2012 | AC23: 2013-01-01 | AD23: 2013-02-01 | AE23: 2013-03-01 | AF23: 2013-04-01 | AG23: 2013-05-01 | AH23: 2013-06-01 | AI23: 2013-07-01 | AJ23: 2013-08-01 | AK23: 2013-09-01 | AL23: 2013-10-01 | AM23: 2013-11-01 | AN23: 2013-12-01 | AO23: 2013 | AP23: 2014-01-01 | AQ23: 2014-02-01 | AR23: 2014-03-01 | AS23: 2014-04-01 | AT23: 2014-05-01 | AU23: 2014-06-01 | AV23: 2014-07-01 | AW23: 2014-08-01 | AX23: 2014-09-01 | AY23: 2014-10-01 | AZ23: 2014-11-01 | BA23: 2014-12-01 | BB23: 2014 | BC23: 2015-01-01 | BD23: 2015-02-01 | BE23: 2015-03-01 | BF23: 2015-04-01 | BG23: 2015-05-01 | BH23: 2015-06-01 | BI23: 2015-07-01 | BJ23: 2015-08-01 | BK23: 2015-09-01 | BL23: 2015-10-01 | BM23: 2015-11-01 | BN23: 2015-12-01 | BO23: 2015 | BP23: 2016-01-01 | BQ23: 2016-02-01 | BR23: 2016-03-01 | BS23: 2016-04-01 | BT23: 2016-05-01 | BU23: 2016-06-01 | BV23: 2016-07-01 | BW23: 2016-08-01 | BX23: 2016-09-01 | BY23: 2016-10-01 | BZ23: 2016-11-01 | CA23: 2016-12-01 | CB23: 2016 | CC23: 2017-01-01 | CD23: 2017-02-01 | CE23: 2017-03-01 | CF23: 2017-04-01 | CG23: 2017-05-01 | CH23: 2017-06-01 | CI23: 2017-07-01 | CJ23: 2017-08-01 | CK23: 2017-09-01 | CL23: 2017-10-01 | CM23: 2017-11-01 | CN23: 2017-12-01 | CO23: 2017 | CP23: 2018-01-01 | CQ23: 2018-02-01 | CR23: 2018-03-01 | CS23: 2018-04-01 | CT23: 2018-05-01 | CU23: 2018-06-01 | CV23: 2018-07-01 | CW23: 2018-08-01 | CX23: 2018-09-01 | CY23: 2018-10-01 | CZ23: 2018-11-01 | DA23: 2018-12-01 | DB23: 2018 | DC23: 2019-01-01 | DD23: 2019-02-01 | DE23: 2019-03-01 | DF23: 2019-04-01 | DG23: 2019-05-01 | DH23: 2019-06-01 | DI23: 2019-07-01 | DJ23: 2019-08-01 | DK23: 2019-09-01 | DL23: 2019-10-01 | DM23: 2019-11-01 | DN23: 2019-12-01 | DO23: 2019 | DP23: 2020-01-01 | DQ23: 2020-02-01 | DR23: 2020-03-01 | DS23: 2020-04-01 | DT23: 2020-05-01 | DU23: 2020-06-01 | DV23: 2020-07-01 | DW23: 2020-08-01 | DX23: 2020-09-01 | DY23: 2020-10-01 | DZ23: 2020-11-01 | EA23: 2020-12-01 | EB23: 2020
B24: Variación mensual | C24: -0.4242039389 | D24: -2.275036423 | E24: -0.459843127 | F24: -3.390210397 | G24: -0.2909963541 | H24: 1.551890853 | I24: -4.781745342 | J24: 0.6075794 | K24: 1.569608787 | L24: -0.655851924 | M24: -6.179711055 | N24: -6.537826156 | O24: -1.836834145 | P24: -2.325523424 | Q24: 7.327350421 | R24: -5.930628289 | S24: 1.108069295 | T24: -0.7309730028 | U24: 0.1903687759 | V24: -1.309260057 | W24: -0.372603631 | X24: -5.664557277 | Y24: -2.950796094 | Z24: -1.662562643 | AA24: -2.480670538 | AB24: -1.282208225 | AC24: -2.37780368 | AD24: -10.46540771 | AE24: -0.6782539828 | AF24: 0.1087689749 | AG24: -3.585293264 | AH24: -7.738178919 | AI24: -0.1924477558 | AJ24: -3.957979328 | AK24: -0.6043166603 | AL24: 0.2840630798 | AM24: 1.057063898 | AN24: 1.902944899 | AO24: -2.27637452 | AP24: -2.217664335 | AQ24: -1.003027377 | AR24: -1.389670902 | AS24: -3.689902304 | AT24: 0.1011422345 | AU24: 2.410224779 | AV24: -2.397834609 | AW24: -2.08923697 | AX24: 3.053824353 | AY24: -0.4097518925 | AZ24: -3.413178922 | BA24: -1.934431565 | BB24: -1.128367328 | BC24: 2.898723459 | BD24: 3.225334862 | BE24: 1.325102523 | BF24: 0.4611895249 | BG24: 1.804635402 | BH24: 3.781985379 | BI24: 11.03272845 | BJ24: 3.49784346 | BK24: -3.327241709 | BL24: 0.1442350487 | BM24: 0.5615200766 | BN24: -1.881385977 | BO24: 1.995758211 | BP24: -5.312298768 | BQ24: -0.7845249645 | BR24: 1.383130578 | BS24: 5.565963108 | BT24: -0.3826676212 | BU24: -0.4414683294 | BV24: -5.187696998 | BW24: 2.632808233 | BX24: 6.136126422 | BY24: 0.6267320758 | BZ24: 3.664178156 | CA24: 2.035998922 | CB24: 0.6554166259 | CC24: 7.685800689 | CD24: -4.308407122 | CE24: -1.67918273 | CF24: -5.151063314 | CG24: 3.273198423 | CH24: 6.724531857 | CI24: 1.046107325 | CJ24: 1.832171288 | CK24: - | CL24: - | CM24: - | CN24: - | CO24: 1.199727124 | CP24: - | CQ24: - | CR24: - | CS24: - | CT24: - | CU24: - | CV24: - | CW24: - | CX24: - | CY24: - | CZ24: - | DA24: - | DB24: - | DC24: - | DD24: - | DE24: - | DF24: - | DG24: - | DH24: - | DI24: - | DJ24: - | DK24: - | DL24: - | DM24: - | DN24: - | DO24: - | DP24: - | DQ24: - | DR24: - | DS24: - | DT24: - | DU24: - | DV24: - | DW24: - | DX24: - | DY24: - | DZ24: - | EA24: - | EB24: -
BP25: -0.01059900431 | BQ25: 3.706991845 | BR25: -1.410618457
B26: Laboralidad | C26: 0.3075731083 | D26: -0.04393436109 | E26: 0.6992685555 | F26: -0.5609994121 | G26: 0.2386135681 | H26: -0.009094904873 | I26: -1.09221404 | J26: 0.3206520708 | K26: 0.5434851789 | L26: 0.1196934558 | M26: 0.06032495621 | N26: 0.7127410834 | O26: 0.1174574274 | P26: 1.514462197 | Q26: 3.397543585 | R26: -1.036716987 | S26: -0.6943752343 | T26: 0.236136763 | U26: -0.1822564634 | V26: 0.2394409633 | W26: -0.05056091423 | X26: -1.617790053 | Y26: 0.1628013108 | Z26: -0.8171056762 | AA26: -1.07661114 | AB26: -0.2597197327 | AC26: 0.3990341476 | AD26: -2.878178477 | AE26: -2.596406695 | AF26: 3.1798057 | AG26: 0.0804003574 | AH26: -1.216527568 | AI26: 1.829708888 | AJ26: 0.09174004564 | AK26: 0.9393864793 | AL26: 2.140976045 | AM26: 0.6330202195 | AN26: -0.2082688518 | AO26: 0.1725230084 | AP26: -1.021194083 | AQ26: 0.05888875009 | AR26: 2.207388254 | AS26: -2.059662828 | AT26: -0.7465368855 | AU26: 0.2206014683 | AV26: 0.1623955133 | AW26: -0.6203416069 | AX26: 0.9484218072 | AY26: -0.09448111717 | AZ26: -0.2211189028 | BA26: 0.8244785618 | BB26: -0.009317152201 | BC26: -1.104579427 | BD26: 0.02203271433 | BE26: 0.1733901814 | BF26: 0.7003931413 | BG26: -0.284859196 | BH26: 0.9575365198 | BI26: 0.06571473032 | BJ26: 0.2672158281 | BK26: -0.09387292183 | BL26: -1.108773161 | BM26: 0.2265799448 | BN26: -0.6331211649 | BO26: -0.07473808357 | BP26: -1.874630038 | BQ26: -3.280286312 | BR26: 0.8444894648 | BS26: 2.096933098 | BT26: 0.7829667095 | BU26: 0.2985198415 | BV26: -1.225708407 | BW26: 1.634940698 | BX26: 0.3514519712 | BY26: -0.8263167261 | BZ26: 0.3714936094 | CA26: 1.64302246 | CB26: 0.5800231571 | CC26: 1.131708941 | CD26: -0.2415528815 | CE26: 2.54231567 | CF26: -3.493584481 | CG26: 0.5022345109 | CH26: 0.2217051554 | CI26: -0.0794877015 | CJ26: -0.1400506225 | CK26: - | CL26: - | CM26: - | CN26: - | CO26: -0.2751254565 | CP26: - | CQ26: - | CR26: - | CS26: - | CT26: - | CU26: - | CV26: - | CW26: - | CX26: - | CY26: - | CZ26: - | DA26: - | DB26: - | DC26: - | DD26: - | DE26: - | DF26: - | DG26: - | DH26: - | DI26: - | DJ26: - | DK26: - | DL26: - | DM26: - | DN26: - | DO26: - | DP26: - | DQ26: - | DR26: - | DS26: - | DT26: - | DU26: - | DV26: - | DW26: - | DX26: - | DY26: - | DZ26: - | EA26: - | EB26: -
B27: Temperatura | C27: -1.189867325 | D27: -3.902161787 | E27: -0.8094861604 | F27: -1.775802786 | G27: -0.8280926342 | H27: 1.338037671 | I27: -2.841677888 | J27: -0.03945382471 | K27: 2.149316417 | L27: 2.550786929 | M27: -2.962788266 | N27: -3.264252744 | O27: -1.012969146 | P27: -1.643672404 | Q27: 4.713153175 | R27: -2.858422526 | S27: 2.326354982 | T27: 1.487520789 | U27: 2.058761126 | V27: 1.243184504 | W27: 1.562754735 | X27: -1.259565118 | Y27: -1.615165053 | Z27: 1.997707847 | AA27: 1.022736771 | AB27: 0.6924805914 | AC27: 1.001162311 | AD27: -1.923423361 | AE27: 3.772605588 | AF27: -0.2269273586 | AG27: -1.527274276 | AH27: -4.119312047 | AI27: 1.262596575 | AJ27: -1.657672047 | AK27: -0.1438450908 | AL27: -0.1234952727 | AM27: 0.1486297453 | AN27: 0.3924588484 | AO27: -0.2963318639 | AP27: -0.6386995747 | AQ27: -0.800680461 | AR27: -3.294430123 | AS27: -1.821327946 | AT27: -1.368396883 | AU27: 1.878610418 | AV27: -2.520678446 | AW27: -1.371207535 | AX27: 0.6003394856 | AY27: 0.8143872907 | AZ27: -2.111745175 | BA27: -0.4927501553 | BB27: -0.9634759263 | BC27: 0.481533539 | BD27: 1.964816365 | BE27: 1.021517551 | BF27: -0.6474150078 | BG27: 2.513376552 | BH27: 2.421003374 | BI27: 5.432988393 | BJ27: 0.7939066405 | BK27: -2.788312006 | BL27: -2.222099991 | BM27: -1.108637058 | BN27: -3.902925933 | BO27: 0.359515108 | BP27: -3.427069726 | BQ27: -1.211230497 | BR27: 1.949259571 | BS27: 1.077424379 | BT27: -1.350074899 | BU27: -0.7413622564 | BV27: -1.01885142 | BW27: 0.6953548544 | BX27: 2.082512644 | BY27: 0.4170091018 | BZ27: 2.295512493 | CA27: 2.421606863 | CB27: 0.04646389977 | CC27: 1.260639411 | CD27: -5.561329899 | CE27: -2.650234261 | CF27: -0.7583606899 | CG27: 1.539433326 | CH27: 2.399328675 | CI27: 0.00826496541 | CJ27: 0.2455648655 | CK27: - | CL27: - | CM27: - | CN27: - | CO27: 0.02647749128 | CP27: - | CQ27: - | CR27: - | CS27: - | CT27: - | CU27: - | CV27: - | CW27: - | CX27: - | CY27: - | CZ27: - | DA27: - | DB27: - | DC27: - | DD27: - | DE27: - | DF27: - | DG27: - | DH27: - | DI27: - | DJ27: - | DK27: - | DL27: - | DM27: - | DN27: - | DO27: - | DP27: - | DQ27: - | DR27: - | DS27: - | DT27: - | DU27: - | DV27: - | DW27: - | DX27: - | DY27: - | DZ27: - | EA27: - | EB27: -
B28: Demanda corregida | C28: 0.458090278 | D28: 1.671059725 | E28: -0.3496255221 | F28: -1.053408198 | G28: 0.298482712 | H28: 0.222948086 | I28: -0.8478534134 | J28: 0.3263811539 | K28: -1.123192809 | L28: -3.326332308 | M28: -3.277247745 | N28: -3.986314495 | O28: -0.9413224262 | P28: -2.196313218 | Q28: -0.7833463393 | R28: -2.035488776 | S28: -0.5239104522 | T28: -2.454630555 | U28: -1.686135886 | V28: -2.791885525 | W28: -1.884797452 | X28: -2.787202106 | Y28: -1.498432351 | Z28: -2.843164814 | AA28: -2.426796169 | AB28: -1.714969084 | AC28: -3.778000139 | AD28: -5.663805868 | AE28: -1.854452876 | AF28: -2.844109367 | AG28: -2.138419345 | AH28: -2.402339303 | AI28: -3.284753219 | AJ28: -2.392047326 | AK28: -1.399858049 | AL28: -1.733417692 | AM28: 0.2754139331 | AN28: 1.718754902 | AO28: -2.152565665 | AP28: -0.5577706773 | AQ28: -0.2612356662 | AR28: -0.3026290326 | AS28: 0.1910884699 | AT28: 2.216076003 | AU28: 0.3110128931 | AV28: -0.03955167662 | AW28: -0.09768782853 | AX28: 1.50506306 | AY28: -1.129658066 | AZ28: -1.080314844 | BA28: -2.266159972 | BB28: -0.1555742491 | BC28: 3.521769347 | BD28: 1.238485783 | BE28: 0.1301947909 | BF28: 0.4082113913 | BG28: -0.4238819538 | BH28: 0.4034454858 | BI28: 5.53402533 | BJ28: 2.436720992 | BK28: -0.4450567811 | BL28: 3.475108201 | BM28: 1.44357719 | BN28: 2.65466112 | BO28: 1.710981187 | BP28: -3.440857025 | BQ28: -1.180350815 | BR28: 2.077219793 | BS28: 2.391605631 | BT28: 0.1844405683 | BU28: 0.001374085414 | BV28: -2.943137172 | BW28: 0.3025126807 | BX28: 3.702161806 | BY28: 1.0360397 | BZ28: 0.9971720534 | CA28: -2.028630401 | CB28: 0.02892956905 | CC28: 5.293452337 | CD28: 1.494475658 | CE28: -1.571264139 | CF28: -0.8991181433 | CG28: 1.231530586 | CH28: 4.103498026 | CI28: 1.117330061 | CJ28: 1.726657045 | CK28: - | CL28: - | CM28: - | CN28: - | CO28: 1.448375089 | CP28: - | CQ28: - | CR28: - | CS28: - | CT28: - | CU28: - | CV28: - | CW28: - | CX28: - | CY28: - | CZ28: - | DA28: - | DB28: - | DC28: - | DD28: - | DE28: - | DF28: - | DG28: - | DH28: - | DI28: - | DJ28: - | DK28: - | DL28: - | DM28: - | DN28: - | DO28: - | DP28: - | DQ28: - | DR28: - | DS28: - | DT28: - | DU28: - | DV28: - | DW28: - | DX28: - | DY28: - | DZ28: - | EA28: - | EB28: -
B30: Componentes anuales del crecimiento de la demanda peninsular (%) | C30: =Componentes!O2 -> 1991 | D30: =Componentes!AB2 -> 1992 | E30: =Componentes!AO2 -> 1993 | F30: =Componentes!BB2 -> 1994 | G30: =Componentes!BO2 -> 1995 | H30: =Componentes!CB2 -> 1996 | I30: =Componentes!CO2 -> 1997 | J30: =Componentes!DB2 -> 1998 | K30: =Componentes!DO2 -> 1999 | L30: =Componentes!EB2 -> 2000 | M30: =Componentes!EO2 -> 2001 | N30: =Componentes!FB2 -> 2002 | O30: =Componentes!FO2 -> 2003 | P30: =Componentes!GB2 -> 2004 | Q30: =Componentes!GO2 -> 2005 | R30: =Componentes!HB2 -> 2006 | S30: =Componentes!HO2 -> 2007 | T30: =Componentes!IB2 -> 2008 | U30: =Componentes!IO2 -> 2009 | V30: =Componentes!JB2 -> 2010 | W30: =Componentes!JO2 -> 2011 | X30: =Componentes!KB2 -> 2012 | Y30: =Componentes!KO2 -> 2013 | Z30: =Componentes!LB2 -> 2014 | AA30: =Componentes!LO2 -> 2015 | AB30: =Componentes!MB2 -> 2016 | AC30: =Componentes!MO2 -> 2017 | AD30: =Componentes!NB2 -> 2018 | AE30: =Componentes!NO2 -> 2019 | AF30: =Componentes!OB2 -> 2020
B31: Variación anual | C31: =O3 -> 3.876 | D31: =AB3 -> 0.906 | E31: =AO3 -> 0.117 | F31: =BB3 -> 3.565 | G31: =BO3 -> 3.756 | H31: =CB3 -> 2.949 | I31: =CO3 -> 3.94 | J31: =DB3 -> 6.584 | K31: =DO3 -> 6.507 | L31: =EB3 -> 5.794 | M31: =EO3 -> 5.449 | N31: =FB3 -> 2.892 | O31: =FO3 -> 6.749 | P31: =GB3 -> 4.489 | Q31: =GO3 -> 4.325 | R31: =Componentes!HB3 -> 3.573 | S31: =Componentes!HO3 -> 2.924 | T31: =Componentes!IB3 -> 1.055 | U31: =Componentes!IO3 -> -4.731 | V31: =Componentes!JB3 -> 3.113747512 | W31: =Componentes!JO3 -> -1.892143894 | X31: =Componentes!KB3 -> -1.401885516 | Y31: =Componentes!KO3 -> -2.24027504 | Z31: =Componentes!LB3 -> -1.146487295 | AA31: =Componentes!LO3 -> 1.993268017 | AB31: =Componentes!MB3 -> 0.6366956013 | AC31: =Componentes!MO3 -> 1.094843788 | AD31: =Componentes!NB3 -> - | AE31: =Componentes!NO3 -> - | AF31: =Componentes!OB3 -> -
B33: Laboralidad | C33: =O5 -> -0.009 | D33: =AB5 -> 0.398 | E33: =Componentes!AO5 -> -0.251 | F33: =Componentes!BB5 -> -0.117 | G33: =Componentes!BO5 -> -0.034 | H33: =Componentes!CB5 -> 0.204 | I33: =Componentes!CO5 -> -0.206 | J33: =Componentes!DB5 -> -0.269 | K33: =Componentes!DO5 -> 0.368 | L33: =Componentes!EB5 -> 0.213 | M33: =Componentes!EO5 -> -0.312 | N33: =Componentes!FB5 -> 0.013 | O33: =Componentes!FO5 -> 0.148 | P33: =Componentes!GB5 -> 0.394 | Q33: =Componentes!GO5 -> -0.357 | R33: =Componentes!HB5 -> -0.095 | S33: =Componentes!HO5 -> -0.042 | T33: =Componentes!IB5 -> 0.4 | U33: =Componentes!IO5 -> -0.484 | V33: =Componentes!JB5 -> 0.05471488212 | W33: =Componentes!JO5 -> 0.1256947105 | X33: =Componentes!KB5 -> -0.2727796717 | Y33: =Componentes!KO5 -> 0.1950551445 | Z33: =Componentes!LB5 -> -0.01468303779 | AA33: =Componentes!LO5 -> -0.08930755047 | AB33: =Componentes!MB5 -> 0.6000151671 | AC33: =Componentes!MO5 -> -0.2942831758 | AD33: =Componentes!NB5 -> - | AE33: =Componentes!NO5 -> - | AF33: =Componentes!OB5 -> -
B34: Temperatura | C34: =O6 -> 1.465 | D34: -0.731 | E34: =Componentes!AO6 -> 0.495 | F34: =Componentes!BB6 -> -1.446 | G34: =Componentes!BO6 -> -0.736 | H34: =Componentes!CB6 -> 0.181 | I34: =Componentes!CO6 -> -1.222 | J34: =Componentes!DB6 -> 0.559 | K34: =Componentes!DO6 -> 0.786 | L34: =Componentes!EB6 -> -0.758 | M34: =Componentes!EO6 -> 0.477 | N34: =Componentes!FB6 -> -1.124 | O34: =Componentes!FO6 -> 1.146 | P34: =Componentes!GB6 -> -0.129 | Q34: =Componentes!GO6 -> 1.551 | R34: =Componentes!HB6 -> -0.949 | S34: =Componentes!HO6 -> -1.295 | T34: =Componentes!IB6 -> -0.058 | U34: =Componentes!IO6 -> 0.441 | V34: =Componentes!JB6 -> 0.3968313055 | W34: =Componentes!JO6 -> -1.027934365 | X34: =Componentes!KB6 -> 0.6896690035 | Y34: =Componentes!KO6 -> -0.2720854883 | Z34: =Componentes!LB6 -> -0.984818408 | AA34: =Componentes!LO6 -> 0.3584735471 | AB34: =Componentes!MB6 -> 0.08915295985 | AC34: =Componentes!MO6 -> -0.0199257276 | AD34: =Componentes!NB6 -> - | AE34: =Componentes!NO6 -> - | AF34: =Componentes!OB6 -> -
B35: Demanda corregida | C35: =O7 -> 2.42 | D35: 1.239 | E35: =Componentes!AO7 -> -0.127 | F35: =Componentes!BB7 -> 5.128 | G35: =Componentes!BO7 -> 4.526 | H35: =Componentes!CB7 -> 2.564 | I35: =Componentes!CO7 -> 5.368 | J35: =Componentes!DB7 -> 6.294 | K35: =Componentes!DO7 -> 5.353 | L35: =Componentes!EB7 -> 6.339 | M35: =Componentes!EO7 -> 5.284 | N35: =Componentes!FB7 -> 4.003 | O35: =Componentes!FO7 -> 5.455 | P35: =Componentes!GB7 -> 4.224 | Q35: =Componentes!GO7 -> 3.131 | R35: =Componentes!HB7 -> 4.617 | S35: =Componentes!HO7 -> 4.261 | T35: =Componentes!IB7 -> 0.713 | U35: =Componentes!IO7 -> -4.688 | V35: =Componentes!JB7 -> 2.662201324 | W35: =Componentes!JO7 -> -0.9899042399 | X35: =Componentes!KB7 -> -1.818774848 | Y35: =Componentes!KO7 -> -2.163244696 | Z35: =Componentes!LB7 -> -0.1469858495 | AA35: =Componentes!LO7 -> 1.736788672 | AB35: =Componentes!MB7 -> -0.05247252564 | AC35: =Componentes!MO7 -> 1.409052691 | AD35: =Componentes!NB7 -> - | AE35: =Componentes!NO7 -> - | AF35: =Componentes!OB7 -> -
B37: Componentes anuales del crecimiento de la demanda Islas Baleares (%) | C37: =Componentes!O9 -> 2011 | D37: =Componentes!AB9 -> 2012 | E37: =Componentes!AO9 -> 2013 | F37: =Componentes!BB9 -> 2014 | G37: =Componentes!BO9 -> 2015 | H37: =Componentes!CB9 -> 2016 | I37: =Componentes!CO9 -> 2017 | J37: =Componentes!DB9 -> 2018 | K37: =Componentes!DO9 -> 2019 | L37: =Componentes!EB9 -> 2020
B38: Variación anual | C38: =Componentes!O10 -> -1.660652455 | D38: =Componentes!AB10 -> 1.380811744 | E38: =Componentes!AO10 -> -2.560166878 | F38: =Componentes!BB10 -> -1.553096896 | G38: =Componentes!BO10 -> 3.777874219 | H38: =Componentes!CB10 -> 0.6166345801 | I38: =Componentes!CO10 -> 4.376081716 | J38: =Componentes!DB10 -> - | K38: =Componentes!DO10 -> - | L38: =Componentes!EB10 -> -
B40: Laboralidad | C40: =Componentes!O12 -> -0.05360259252 | D40: =Componentes!AB12 -> -0.02670709284 | E40: =Componentes!AO12 -> -0.1356038236 | F40: =Componentes!BB12 -> 0.2352407747 | G40: =Componentes!BO12 -> 0.1727220386 | H40: =Componentes!CB12 -> 0.210992142 | I40: =Componentes!CO12 -> -0.1806211618 | J40: =Componentes!DB12 -> - | K40: =Componentes!DO12 -> - | L40: =Componentes!EB12 -> -
B41: Temperatura | C41: =Componentes!O13 -> -1.468024458 | D41: =Componentes!AB13 -> 1.534335067 | E41: =Componentes!AO13 -> -1.016716942 | F41: =Componentes!BB13 -> 0.1922373557 | G41: =Componentes!BO13 -> 0.9300797226 | H41: =Componentes!CB13 -> -1.657082883 | I41: =Componentes!CO13 -> 1.923392673 | J41: =Componentes!DB13 -> - | K41: =Componentes!DO13 -> - | L41: =Componentes!EB13 -> -
B42: Demanda corregida | C42: =Componentes!O14 -> -0.1390254046 | D42: =Componentes!AB14 -> -0.1268162301 | E42: =Componentes!AO14 -> -1.407846113 | F42: =Componentes!BB14 -> -1.980575027 | G42: =Componentes!BO14 -> 2.6750872 | H42: =Componentes!CB14 -> 2.062725321 | I42: =Componentes!CO14 -> 2.633310205 | J42: =Componentes!DB14 -> - | K42: =Componentes!DO14 -> - | L42: =Componentes!EB14 -> -
B44: Componentes anuales del crecimiento de la demanda Islas Canarias (%) | C44: =Componentes!O16 -> 2011 | D44: =Componentes!AB16 -> 2012 | E44: =Componentes!AO16 -> 2013 | F44: =Componentes!BB16 -> 2014 | G44: =Componentes!BO16 -> 2015 | H44: =Componentes!CB16 -> 2016 | I44: =Componentes!CO16 -> 2017 | J44: =Componentes!DB16 -> 2018 | K44: =Componentes!DO16 -> 2019 | L44: =Componentes!EB16 -> 2020
B45: Variación anual | C45: =Componentes!O17 -> -0.2756998647 | D45: =Componentes!AB17 -> 0.2514750954 | E45: =Componentes!AO17 -> -3.023379541 | F45: =Componentes!BB17 -> -0.5068397889 | G45: =Componentes!BO17 -> 1.041798557 | H45: =Componentes!CB17 -> 1.247662994 | I45: =Componentes!CO17 -> 2.063275913 | J45: =Componentes!DB17 -> - | K45: =Componentes!DO17 -> - | L45: =Componentes!EB17 -> -
B47: Laboralidad | C47: =Componentes!O19 -> -0.009531395872 | D47: =Componentes!AB19 -> -0.04154167058 | E47: =Componentes!AO19 -> -0.2695515154 | F47: =Componentes!BB19 -> -0.0159449817 | G47: =Componentes!BO19 -> 0.1779619065 | H47: =Componentes!CB19 -> 0.2549061614 | I47: =Componentes!CO19 -> 0.2077618615 | J47: =Componentes!DB19 -> - | K47: =Componentes!DO19 -> - | L47: =Componentes!EB19 -> -
B48: Temperatura | C48: =Componentes!O20 -> -0.2863990663 | D48: =Componentes!AB20 -> 0.2210717184 | E48: =Componentes!AO20 -> -0.516236401 | F48: =Componentes!BB20 -> -1.108967145 | G48: =Componentes!BO20 -> 0.007922619716 | H48: =Componentes!CB20 -> -0.0394265983 | I48: =Componentes!CO20 -> 0.02403568354 | J48: =Componentes!DB20 -> - | K48: =Componentes!DO20 -> - | L48: =Componentes!EB20 -> -
B49: Demanda corregida | C49: =Componentes!O21 -> 0.02023059749 | D49: =Componentes!AB21 -> 0.07194504761 | E49: =Componentes!AO21 -> -1.96114536 | F49: =Componentes!BB21 -> 0.6180723378 | G49: =Componentes!BO21 -> 0.8559149762 | H49: =Componentes!CB21 -> 1.032183431 | I49: =Componentes!CO21 -> 1.831478368 | J49: =Componentes!DB21 -> - | K49: =Componentes!DO21 -> - | L49: =Componentes!EB21 -> -
B51: Componentes anuales del crecimiento de la demanda nacional (%) | C51: =Componentes!O23 -> 2011 | D51: =Componentes!AB23 -> 2012 | E51: =Componentes!AO23 -> 2013 | F51: =Componentes!BB23 -> 2014 | G51: =Componentes!BO23 -> 2015 | H51: =Componentes!CB23 -> 2016 | I51: =Componentes!CO23 -> 2017 | J51: =Componentes!DB23 -> 2018 | K51: =Componentes!DO23 -> 2019 | L51: =Componentes!EB23 -> 2020
B52: Variación mensual | C52: =Componentes!O24 -> -1.836834145 | D52: =Componentes!AB24 -> -1.282208225 | E52: =Componentes!AO24 -> -2.27637452 | F52: =Componentes!BB24 -> -1.128367328 | G52: =Componentes!BO24 -> 1.995758211 | H52: =Componentes!CB24 -> 0.6554166259 | I52: =Componentes!CO24 -> 1.199727124 | J52: =Componentes!DB24 -> - | K52: =Componentes!DO24 -> - | L52: =Componentes!EB24 -> -
B54: Laboralidad | C54: =Componentes!O26 -> 0.1174574274 | D54: =Componentes!AB26 -> -0.2597197327 | E54: =Componentes!AO26 -> 0.1725230084 | F54: =Componentes!BB26 -> -0.009317152201 | G54: =Componentes!BO26 -> -0.07473808357 | H54: =Componentes!CB26 -> 0.5800231571 | I54: =Componentes!CO26 -> -0.2751254565 | J54: =Componentes!DB26 -> - | K54: =Componentes!DO26 -> - | L54: =Componentes!EB26 -> -
B55: Temperatura | C55: =Componentes!O27 -> -1.012969146 | D55: =Componentes!AB27 -> 0.6924805914 | E55: =Componentes!AO27 -> -0.2963318639 | F55: =Componentes!BB27 -> -0.9634759263 | G55: =Componentes!BO27 -> 0.359515108 | H55: =Componentes!CB27 -> 0.04646389977 | I55: =Componentes!CO27 -> 0.02647749128 | J55: =Componentes!DB27 -> - | K55: =Componentes!DO27 -> - | L55: =Componentes!EB27 -> -
B56: Demanda corregida | C56: =Componentes!O28 -> -0.9413224262 | D56: =Componentes!AB28 -> -1.714969084 | E56: =Componentes!AO28 -> -2.152565665 | F56: =Componentes!BB28 -> -0.1555742491 | G56: =Componentes!BO28 -> 1.710981187 | H56: =Componentes!CB28 -> 0.02892956905 | I56: =Componentes!CO28 -> 1.448375089 | J56: =Componentes!DB28 -> - | K56: =Componentes!DO28 -> - | L56: =Componentes!EB28 -> -

Sheet Año (hidden)
X1: 1 | Y1: 1 | Z1: 1
A2: Mensual | B2: 1991 | C2: 1991-2000 | O2: Nacional | P2: Mensual
A3: Trimestral | B3: 1992 | C3: 2001-2010 | O3: Peninsular | P3: Anual
A4: Anual | B4: 1993 | C4: 2011-2020 | D4: 2011-2020 | O4: Canarias
B5: 1994 | O5: Baleares
B6: 1995
B7: 1996
B8: 1997
B9: 1998
B10: 1999
B11: 2000
B12: 2001
B13: 2002
B14: 2003
B15: 2004
B16: 2005
B17: 2006
B18: 2007
B19: 2008
B20: 2009
B21: 2010
B22: 2011
B23: 2012
B24: 2013
B25: 2014
B26: 2015
B27: 2016
B28: 2017
